Cogmind - Beta 9.6 @@@ ROGUE MODE // 2020.09.02 @ 22:52:42 Player: Valguris Result: Destroyed by G-67 Veteran with Electrolaser Performance ------------- Evolutions (6) 3000 Regions Visited (31) 6200 Robots Destroyed (542) 2710 Value Destroyed (25967) 25967 Prototype IDs (75) 1500 Alien Tech Used (1) 200 Bonus (27395) 27395 TOTAL SCORE: 66972 Bonus ------- High Alert Combat Kills 5290 Follower Combat Kills 5329 Entered Garrisons 400 Used RIF Installer 1000 Network Hubs Disabled 800 Met Data Miner 300 MAIN.C Attacked Warlord 500 Warlord Defense Kill 16056 Built Enhanced Grunts 300 A7 Reached Mainframe 300 Met R17 at Cetus 500 Friendly Fire -3380 Cogmind --------- Core Integrity 0/1150 Matter 295/300 Energy 75/100 System Corruption 2% Temperature Cool (29) Movement Walking (150) Ox1 Location -4/Warlord Parts ------- > --- POWER (2) -------- (None) > --- PROPULSION (3) --- Flexi-carbon Leg > --- UTILITY (13) ----- Advanced Cooling System High-capacity Storage Unit Experimental Core Analyzer > --- WEAPON (2) ------- Helical Railgun > --- INVENTORY (12) --- Reinforced Antimatter Reactor Improved Quantum Reactor Ghost Barrier Relay Coupler [NC] (26) Relay Coupler [NC] (24) Improved Dynamic Insulation System Mini Smartbomb Launcher Improved Remote Datajack Self-destruct Interrupter (50) Peak State ------------ > --- POWER ------------ Vortex Chain Reactor > --- PROPULSION ------- Improved Treads Armored Huge Wheel > --- UTILITY ---------- Advanced Cooling System High-capacity Storage Unit High-capacity Storage Unit High-capacity Storage Unit Experimental Energy Well Experimental Sensor Array Experimental Core Analyzer Heavy Armor Plating Centrium Light Armor Plating Centrium Light Armor Plating Centrium Medium Armor Plating Improved Energy Mantle > --- WEAPON ----------- EMDS > --- INVENTORY -------- Light Quantum Reactor Improved Quantum Reactor Improved Quantum Reactor Improved Energy Well Matter Compressor Experimental Sensor Array Experimental Phase Shifter Damper Plating Ghost Barrier Relay Coupler [NC] Relay Coupler [NC] Relay Coupler [NC] Combat Drone Bay EMDS EMDS EMDS Neutron Cannon Neutron Cannon Mass Driver Mini Smartbomb Launcher Improved Remote Datajack Self-destruct Interrupter [Rating: 145] Favorites ----------- Power Antimatter Reactor Engine Improved Deuterium Engine Power Core Nuclear Core Reactor Antimatter Reactor Propulsion Armored Huge Wheel Treads Heavy Treads Leg Flexi-carbon Leg Wheel Armored Huge Wheel Utility High-capacity Storage Unit Device Long-range Sensor Array Storage High-capacity Storage Unit Processor Advanced Targeting Computer Hackware Advanced Hacking Suite Protection Improved Medium Armor Plating Weapon Improved EM Pulse Cannon Energy Gun Heavy Particle Gun Energy Cannon Improved EM Pulse Cannon Ballistic Gun Light Assault Rifle Ballistic Cannon Flak Cannon Launcher Missile Launcher Special Weapon Remote Datajack Slashing Weapon Great Axe Special Melee Weapon Datajack Build | -11 -10 -10 -10 -9 -8 -8 -8 -8 -7 -7 -7 -7 -7 -7 -7 -6 -6 -6 -6 -5 -5 -5 -5 -5 -5 -4 -4 -4 -4 -4 -4 ------- Run | Scr Mat Min Exi Min Mat Gar Mat Gar Fac Was Fac Low Low Zio Dee Pro Fac Low Dat Pro Fac Ext Cet Arc Hub Fac Was Fac Upp Upp War Slots Evolved 12 | . . . . . 4 . . . 2 . . . . . . . 2 . . . 2 . . . . 2 . . . . . Power 1 | . . . . . . . . . 1 . . . . . . . . . . . . . . . . . . . . . . Propulsion . | . . . . . . . . . . . . . . . . . . . . . . . . . . . . . . . . Utility 11 | . . . . . 4 . . . 1 . . . . . . . 2 . . . 2 . . . . 2 . . . . . Weapon . | . . . . . . . . . . . . . . . . . . . . . . . . . . . . . . . . Parts Attached 693 | 7 4 1 1 8 31 9 21 24 39 9 14 11 25 16 10 14 23 15 2 18 66 50 27 9 67 17 5 16 5 4 125 Power 30 | 1 . . . 2 2 . 1 1 2 1 . 1 1 1 . 1 1 . . . . 3 2 . 4 . . . . . 6 Engine 11 | 1 . . . 1 2 . . 1 1 . . 1 1 . . . 1 . . . . 2 . . . . . . . . . Core 7 | . . . . 1 . . 1 . 1 . . . . . . . . . . . . 1 . . 2 . . . . . 1 Reactor 12 | . . . . . . . . . . 1 . . . 1 . 1 . . . . . . 2 . 2 . . . . . 5 Propulsion 37 | 3 . . . 2 2 . 4 2 1 1 . . . 1 . . . 1 . . 2 . . . 2 . . . . . 16 Treads 22 | 2 . . . 2 2 . 4 2 1 1 . . . . . . . . . . . . . . . . . . . . 8 Leg 5 | 1 . . . . . . . . . . . . . . . . . . . . . . . . . . . . . . 4 Wheel 10 | . . . . . . . . . . . . . . 1 . . . 1 . . 2 . . . 2 . . . . . 4 Hover . | . . . . . . . . . . . . . . . . . . . . . . . . . . . . . . . . Flight . | . . . . . . . . . . . . . . . . . . . . . . . . . . . . . . . . Utility 293 | 1 1 . 1 . 11 2 9 8 20 3 7 10 12 2 3 5 12 12 . 14 35 18 15 7 19 5 3 1 3 2 52 Device 168 | . . . . . 5 2 3 3 15 2 5 10 6 . 3 4 8 9 . 9 15 12 9 4 16 2 . 1 3 2 20 Storage 30 | 1 . . 1 . 2 . 2 4 . . . . 1 . . . . . . . 8 5 . . . . . . . . 6 Processor 8 | . 1 . . . . . 1 . 1 . . . . . . . . . . . . . . . 1 1 1 . . . 2 Hackware 15 | . . . . . 1 . 1 . 1 1 1 . 3 . . . 1 . . . 3 . . . 1 2 . . . . . Protection 72 | . . . . . 3 . 2 1 3 . 1 . 2 2 . 1 3 3 . 5 9 1 6 3 1 . 2 . . . 24 Artifact . | . . . . . . . . . . . . . . . . . . . . . . . . . . . . . . . . Weapon 333 | 2 3 1 . 4 16 7 7 13 16 4 7 . 12 12 7 8 10 2 2 4 29 29 10 2 42 12 2 15 2 2 51 Energy Gun 17 | . 2 . . 1 5 2 2 2 1 . . . . . . . . . . . . 2 . . . . . . . . . Energy Cannon 192 | . . . . . 3 1 3 4 10 2 5 . 4 6 3 4 9 1 1 2 23 21 5 . 21 9 . 13 1 2 39 Ballistic Gun 17 | 2 1 1 . 2 1 . . . . . . . . 2 . . . . . . . . 1 1 4 . 1 . . . 1 Ballistic Cannon 28 | . . . . . 1 2 1 4 1 . 1 . . 3 . . . . . . 1 2 . . 7 . 1 . . . 4 Launcher 38 | . . . . 1 3 1 . 3 1 . . . 1 . 3 2 1 1 . 2 4 1 3 . 2 . . 2 . . 7 Special Weapon 27 | . . . . . . . . . . 1 . . 5 1 1 . . . 1 . 1 3 1 1 8 3 . . 1 . . Impact Weapon . | . . . . . . . . . . . . . . . . . . . . . . . . . . . . . . . . Slashing Weapon 13 | . . . . . 3 1 1 . 2 1 1 . 2 . . 2 . . . . . . . . . . . . . . . Piercing Weapon . | . . . . . . . . . . . . . . . . . . . . . . . . . . . . . . . . Special Melee Weapon 1 | . . . . . . . . . 1 . . . . . . . . . . . . . . . . . . . . . . Unidentified Prototypes 19 | . . . . . 1 . . . 1 . . . . . . . . 2 . . 1 . 2 . 2 . . . . . 10 Parts Lost 106 | . . 1 . 6 3 4 1 7 . . . . 2 5 1 2 . . . . 6 7 . . 3 . . . . . 58 Power 15 | . . . . 2 . . . 1 . . . . 1 1 . 1 . . . . . 2 . . 2 . . . . . 5 Propulsion 16 | . . . . 2 . . . 1 . . . . . 1 . . . . . . 1 . . . . . . . . . 11 Utility 50 | . . . . . 2 2 1 3 . . . . . 1 . . . . . . 4 2 . . . . . . . . 35 Weapon 25 | . . 1 . 2 1 2 . 2 . . . . 1 2 1 1 . . . . 1 3 . . 1 . . . . . 7 Highest Loss Streak 12 | . . 1 . 5 1 2 1 3 . . . . 2 2 1 1 . . . . 3 2 . . 1 . . . . . 12 Average Slot Usage (%) 85 | . 90 100 87 84 86 89 89 88 91 86 84 84 83 83 84 83 86 86 87 85 87 92 93 93 88 82 84 80 75 79 74 Engine 5 | . 14 14 14 10 9 9 1 8 10 9 7 7 6 7 7 4 . 6 6 6 5 5 4 . . . . . . . . Reactor 5 | . . . . . . . . . . 5 7 7 7 7 7 9 12 6 6 6 5 . 6 11 10 10 10 10 10 10 7 Treads 7 | . 28 28 28 27 18 18 17 18 14 9 7 7 7 6 . . . . . . . . . . . . . . . . 1 Wheel 3 | . . . . . . . . . . . . . . . 7 7 6 9 12 12 10 11 11 11 11 10 10 10 10 10 7 Device 12 | . . . . . 17 18 22 10 9 7 7 7 7 13 7 7 17 18 18 16 14 8 11 16 8 14 15 17 15 15 14 Storage 14 | . 14 14 14 14 11 9 12 18 15 15 15 15 15 15 15 15 13 12 12 12 15 17 16 16 16 15 15 15 15 15 16 Processor 11 | . 5 14 2 . . . 3 9 14 15 15 15 15 15 15 15 13 12 12 12 11 11 11 11 11 11 14 12 10 10 6 Hackware 2 | . . . . . . . . . 4 6 4 . 2 . . . 2 . . . 2 15 11 11 12 8 5 5 5 5 1 Protection 4 | . . . . . 12 17 5 4 . . 1 7 4 . 7 6 6 5 6 5 9 4 9 4 5 5 5 5 5 5 10 Energy Gun 1 | . 15 . . . 11 15 7 5 2 . . . . . . . . . . . . . . . . . . . . . . Energy Cannon 6 | . . . . . 1 . 4 3 5 6 9 15 10 6 7 6 12 9 10 8 10 8 9 4 4 3 . 4 5 9 5 Ballistic Gun 2 | . 11 27 28 26 2 . . . . . . . . . 3 . . . . . . . . 4 1 . 4 . . . . Ballistic Cannon 1 | . . . . . 1 . 4 7 6 . . . . 1 . . . . . . . 1 . . 1 1 4 . . . . Special Weapon 2 | . . . . . . . . . . 7 2 . 2 5 3 . . . 1 . . . . . 2 2 . . . . . Naked Turns . | . . . . . . . . . . . . . . . . . . . . . . . . . . . . . . . . Heaviest Build 231 | 9 11 11 86 92 105 104 106 138 147 146 160 160 160 161 161 167 187 183 183 186 194 151 175 176 203 210 210 222 222 211 231 Greatest Support 97 | 40 40 40 40 40 43 43 43 40 48 70 70 70 70 70 28 28 28 40 40 40 40 40 40 40 40 40 40 40 40 40 97 Greatest Overweight (x) 8 | . . . 2 2 2 2 4 3 3 3 2 2 2 5 5 5 6 6 4 4 4 3 4 4 5 5 5 5 5 5 8 Average Overweight (x) 3 | . . . 1 2 2 2 2 2 2 2 2 2 1 3 5 5 5 4 4 4 3 3 3 3 4 4 5 4 5 5 5 Largest Inventory Capacity 52 | 6 6 6 24 24 24 24 44 52 32 32 32 32 52 32 32 32 32 32 32 32 48 28 28 28 28 28 28 28 28 28 28 Average Capacity 28 | 4 6 6 20 24 24 24 24 30 32 32 32 32 32 32 32 32 32 32 32 32 30 28 28 28 28 28 28 28 28 28 27 Most Carried 32 | 6 6 6 16 21 24 24 24 32 32 32 32 32 32 31 32 32 32 32 32 32 32 28 28 28 28 28 28 28 28 28 28 Average Carried 26 | 3 5 5 12 19 23 22 23 28 31 31 31 31 31 27 29 31 31 30 32 31 30 27 27 27 27 27 27 27 27 27 24 Final Capacity 32 | 6 6 6 24 24 24 24 24 32 32 32 32 32 32 32 32 32 32 32 32 32 28 28 28 28 28 28 28 28 28 28 12 Final Carried 32 | 6 6 5 16 21 23 23 24 29 32 32 32 32 27 28 31 30 31 32 32 32 28 28 28 28 28 28 28 28 28 28 9 Class Distribution -------------------- 59% | Hauler-Mutant 18% | Scavenger-Mutant 14% | Bothacker-Mutant 3% | Hacker-Mutant 3% | Mutant Dominant Class ---------------- Mutant | -10/Materials Mutant | -10/Mines Hauler-Mutant | -10/Exiles Hauler-Mutant | -9/Mines Hauler-Mutant | -8/Materials Hauler-Mutant | -8/Garrison Hauler-Mutant | -8/Materials Hauler-Mutant | -8/Garrison Bothacker-Mutant | -7/Factory Bothacker-Mutant | -7/Waste Bothacker-Mutant | -7/Factory Bothacker-Mutant | -7/Lower Caves Bothacker-Mutant | -7/Lower Caves Hauler-Mutant | -7/Zion Hauler-Mutant | -7/Deep Caves Hauler-Mutant | -6/Proximity Caves Hauler-Mutant | -6/Factory Hauler-Mutant | -6/Lower Caves Hauler-Mutant | -6/Data Miner Hauler-Mutant | -5/Proximity Caves Hauler-Mutant | -5/Factory Hacker-Mutant | -5/Extension Scavenger-Mutant | -5/Cetus Scavenger-Mutant | -5/Archives Hacker-Mutant | -5/Hub_04(d) Scavenger-Mutant | -4/Factory Scavenger-Mutant | -4/Waste Scavenger-Mutant | -4/Factory Scavenger-Mutant | -4/Upper Caves Hauler-Mutant | -4/Upper Caves Scavenger-Mutant | -4/Warlord Resources | -11 -10 -10 -10 -9 -8 -8 -8 -8 -7 -7 -7 -7 -7 -7 -7 -6 -6 -6 -6 -5 -5 -5 -5 -5 -5 -4 -4 -4 -4 -4 -4 ----------- Run | Scr Mat Min Exi Min Mat Gar Mat Gar Fac Was Fac Low Low Zio Dee Pro Fac Low Dat Pro Fac Ext Cet Arc Hub Fac Was Fac Upp Upp War Matter Collected 19702 | 198 107 97 10 218 473 181 460 490 404 270 147 110 359 1209 130 182 313 649 . 840 2132 1230 345 629 1832 310 524 300 137 70 5346 Remotely . | . . . . . . . . . . . . . . . . . . . . . . . . . . . . . . . . Salvage Created 26242 | . . 204 . 307 1303 295 1124 921 584 625 371 568 212 469 105 310 410 193 . 141 1997 774 569 605 1991 450 1312 544 . 199 9659 Parts 999 | . . 11 . 17 67 13 65 48 28 14 19 22 12 42 2 15 21 11 . 16 93 28 25 30 77 22 9 18 . 7 267 Haulers Intercepted 12 | . . . . . 3 . 3 . 3 . . . . . . . . . . . 1 1 . . 1 . . . . . . Recyclers Shooed 7 | . . . . . 5 . . . 1 . 1 . . . . . . . . . . . . . . . . . . . . Parts Field Recycled . | . . . . . . . . . . . . . . . . . . . . . . . . . . . . . . . . Retrieved Matter . | . . . . . . . . . . . . . . . . . . . . . . . . . . . . . . . . Parts Self-Destructed 159 | . . . . . . . . . . . . 6 12 10 . 7 . 9 . 15 . . . . . . . . 21 41 38 Prevented 163 | . . . . . . . . . . . . 14 4 . . 5 . . . . . . . . . . . . . 2 138 Kills | -11 -10 -10 -10 -9 -8 -8 -8 -8 -7 -7 -7 -7 -7 -7 -7 -6 -6 -6 -6 -5 -5 -5 -5 -5 -5 -4 -4 -4 -4 -4 -4 ------- Run | Scr Mat Min Exi Min Mat Gar Mat Gar Fac Was Fac Low Low Zio Dee Pro Fac Low Dat Pro Fac Ext Cet Arc Hub Fac Was Fac Upp Upp War Combat Hostiles Destroyed 419 | . . 10 . 6 21 9 21 22 8 2 4 10 8 6 3 12 7 4 . 11 30 9 6 3 23 7 6 8 . 3 160 Guns 52 | . . 10 . 2 12 4 12 4 4 . . . . . . . . . . . . . . . 3 . 1 . . . . Cannons 157 | . . . . . 2 2 9 10 2 2 3 9 2 5 2 . 1 . . . 15 5 2 1 15 4 5 3 . 1 57 AOE 112 | . . . . 4 7 3 . 8 2 . . 1 6 . 1 10 3 4 . 11 12 2 . . . . . . . . 38 Classes Destroyed 32 | . . 2 . 3 5 1 1 1 3 2 . . . 3 2 . . 2 . . . 1 . . . . . . . 1 5 Worker 5 | . . . . 1 1 . 2 . . . . . . . . . . . . . . . . . 1 . . . . . . Builder 14 | . . . . . 2 . 1 . . . 1 . . . . . . . . . 8 1 . . 1 . . . . . . Tunneler 1 | . . . . . . . . . 1 . . . . . . . . . . . . . . . . . . . . . . Hauler 12 | . . . . . 3 . 3 . 3 . . . . . . . . . . . 1 1 . . 1 . . . . . . Recycler 14 | . . . . 3 4 . 1 . 1 . 1 . . . . . . . . . 1 1 . . 2 . . . . . . Minesweeper 1 | . . . . . . . . . . . . . . . . . . . . . . . . . . . . . . 1 . Mechanic 1 | . . . . . . . . . 1 . . . . . . . . . . . . . . . . . . . . . . Operator 12 | . . . . . . . 1 . 1 . . . . . . . 1 . . . . . . 9 . . . . . . . Watcher 14 | . . . . . 3 . 2 . 1 . 1 . . . . . 2 . . . 2 1 1 . 1 . . . . . . Swarmer 70 | . . 8 . 4 4 . 3 4 . . . 1 6 . . 6 3 4 . 10 4 2 . . . . . . . . 11 Saboteur 8 | . . . . . . . . . . . . . . . . . . . . . . . . . . . . . . . 8 Grunt 140 | . . 2 . 2 11 8 10 12 3 . 2 6 . . . 3 . . . 1 20 3 . . 5 1 . 3 . 2 46 Brawler 19 | . . . . . . 1 1 . . . . 1 1 . . 1 . . . . 1 . . . 1 . . . . . 12 Duelist 16 | . . . . 1 1 . . 3 . . . . 1 . . . . . . . 1 . . . 2 1 . . . . 6 Protector 3 | . . . . . . . . . . . . . . . . . . . . . . . . . . . . . . . 3 Researcher 1 | . . . . . . . . . . . . . . . . . . 1 . . . . . . . . . . . . . Sentry 29 | . . . . . 4 . 6 2 . . 1 1 . . . 1 3 . . . 2 2 . 3 . 1 . 3 . . . Demolisher 4 | . . . . . . . . . . . . . . . . . . . . . . . . . . . . . . . 4 Specialist 3 | . . . . . . . . 1 . . . . . . . . . . . . . . . . . . . . . . 2 Hunter 14 | . . . . . 1 . 1 . 2 . 1 . . . . 1 . . . . . . 2 . 1 1 . . . . 4 Programmer 15 | . . . . . . . . . 3 . . . . . . . 1 . . . 2 1 . . 2 3 . 2 . 1 . Behemoth 5 | . . . . . . . . . . . . . . . . . . . . . . 1 . . . . . . . . 4 Compactor 8 | . . . . . . . . . . 2 . . . . . . . . . . . . . . . . 6 . . . . Cetus Guard 4 | . . . . . . . . . . . . . . . . . . . . . . . 4 . . . . . . . . Lightning 12 | . . . . . . . . . . . . . . . . . . . . . . . . . 12 . . . . . . Striker 10 | . . . . . . . . . . . . . . . . . . . . . . . . . . . . . . . 10 Executioner 7 | . . . . . . . . . . . . . . . . . . . . . . . . . . . . . . . 7 Zionite 26 | . . . . . . . . . . . . . . 26 . . . . . . . . . . . . . . . . . Z-Light 2 | . . . . . . . . . . . . . . . 2 . . . . . . . . . . . . . . . . Decomposer 1 | . . . . . . . . . . . . . . . . . . 1 . . . . . . . . . . . . . Samaritan 2 | . . . . . . . . . . . . . . . . . . 2 . . . . . . . . . . . . . Tinkerer 6 | . . . . . . . . . . . . . . 1 . . . . . . . . . . . . . . . . 5 Demented 8 | . . . . . . . . . . . . . . . . . . . . . . . . . . . . . . . 8 Assembled 1 | . . . . . . . . . . . . . . . 1 . . . . . . . . . . . . . . . . Thug 14 | . . . . . . . . . . . . . . 1 . . . . . . . . . . . . . . . . 13 Savage 4 | . . . . . . . . . . . . . . . . . . . . . . . . . . . . . . . 4 Butcher 4 | . . . . . . . . . . . . 1 . . . . . . . . . . . . . . . . . . 3 Bouncer 7 | . . . . . . . . . . . . . . . . . . . . . . . . . . . . . . . 7 Martyr 3 | . . . . . . . . . . 2 . . . . . . . . . . . . . . . . . . . . 1 Guerrilla 1 | . . . . . . . . . . . . . . . . . . . . . . 1 . . . . . . . . . Wizard 6 | . . . . . . . . . . . . . . . . . . . . . . . . . . . . . . . 6 Marauder 2 | . . . . . . . . . . . . . . . . . . . . . . . . . . . . . . . 2 Mutant 11 | . . . . . . . . . . . . . . 5 . . . . . . . . . . . . . . . . 6 Best Kill Streak 18 | . . 3 . 5 7 4 6 5 7 1 2 5 6 5 2 6 5 4 . 5 14 4 4 2 6 4 2 4 . 2 18 Combat Bots Only 18 | . . 3 . 4 4 4 5 5 4 1 2 5 6 2 2 6 4 4 . 5 10 2 3 3 5 4 2 4 . 2 18 Max Kills in Single Turn 4 | . . 1 . 4 3 1 2 3 4 1 1 1 2 1 1 3 3 2 . 3 3 4 1 1 1 1 1 1 . 1 4 Gunslinging . | . . . . . . . . . . . . . . . . . . . . . . . . . . . . . . . . Exploded 4 | . . . . 4 3 1 . 3 2 . . 1 2 . 1 3 3 2 . 3 3 2 . . . . . . . . 4 Melee . | . . . . . . . . . . . . . . . . . . . . . . . . . . . . . . . . Uniques/NPCs Destroyed 4 | . . . . . . . . . . . . . . 1 . . . . . . . . 1 . . . . . . . 2 Imprinter (-7/Zion) A7 (-5/Cetus) Warlord (-4/Warlord) Fake God Mode (-4/Warlord) Combat | -11 -10 -10 -10 -9 -8 -8 -8 -8 -7 -7 -7 -7 -7 -7 -7 -6 -6 -6 -6 -5 -5 -5 -5 -5 -5 -4 -4 -4 -4 -4 -4 -------- Run | Scr Mat Min Exi Min Mat Gar Mat Gar Fac Was Fac Low Low Zio Dee Pro Fac Low Dat Pro Fac Ext Cet Arc Hub Fac Was Fac Upp Upp War Damage Taken 25711 | . . 429 . 619 826 497 495 1515 375 18 96 226 807 881 214 255 88 5 . 89 1404 769 378 120 850 402 . 275 . 182 13896 Core 2231 | . . 102 . 82 62 48 . 190 61 . . . 116 66 . 23 24 . . . 129 106 . . 66 . . 23 . 2 1131 Absorbed by Shields 2719 | . . . . . 255 . . . . . . . . . . 10 61 6 . 96 445 . 138 43 101 . . 140 . . 1424 Core Remaining (%) 66 | 100 . . . 26 . . . 45 . . . . . . . 62 . . . 97 . . . . 69 . . . . . . Volleys Fired 1636 | . 5 25 . 35 85 73 61 76 34 38 9 17 26 95 11 13 46 27 2 9 111 66 30 79 109 24 44 26 5 8 447 Largest 2 | . 2 2 . 2 2 2 2 2 2 1 2 2 2 2 2 2 2 1 1 2 2 2 2 2 2 2 2 2 1 2 2 Hottest 203 | . 70 70 . 85 130 140 123 123 131 68 138 138 138 138 137 150 180 90 30 144 180 180 162 162 180 180 92 180 70 180 203 Shots Fired 2362 | . 10 50 . 68 151 97 122 109 65 38 18 34 33 187 14 18 62 27 2 10 166 98 49 88 184 30 88 31 5 12 496 Gun 591 | . 10 50 . 66 110 84 60 15 24 . . . . 36 . . . . . . . . . 67 25 . 44 . . . . Cannon 1585 | . . . . . 29 9 62 82 38 34 18 34 14 151 8 9 61 24 . 2 151 73 42 19 140 22 44 30 4 12 473 Launcher 106 | . . . . 2 12 4 . 12 3 . . . 3 . 3 9 1 3 . 8 14 1 6 . 1 . . 1 . . 23 Special 80 | . . . . . . . . . . 4 . . 16 . 3 . . . 2 . 1 24 1 2 18 8 . . 1 . . Kinetic 699 | . 5 42 . 65 21 6 46 32 12 . 2 . . 160 . . . . . . 1 22 . 67 115 . 88 . . . 15 Thermal 721 | . 5 8 . 1 118 87 75 38 47 34 2 . . 9 5 . 35 11 . . 64 23 . . 22 12 . 15 . 8 102 Explosive 94 | . . . . 2 12 4 . 12 3 . . . 3 . 3 9 1 3 . 8 8 1 1 . . . . 1 . . 23 Electromagnetic 775 | . . . . . . . 1 27 3 . 14 34 14 18 3 9 26 13 . 2 92 28 47 19 36 10 . 15 4 4 356 Robot Hit Streak 26 | . 2 4 . 10 17 24 14 26 12 13 13 11 12 17 9 12 11 9 1 2 21 13 7 8 14 18 20 13 2 13 20 Robot Miss Streak 10 | . 1 3 . 3 4 2 5 3 5 2 1 2 2 8 1 3 3 6 1 1 4 2 2 4 10 1 2 1 1 . 4 Penetration Max 1 | . . . . . . . . . . . . . . . . . . . . . . . . 1 1 1 1 1 . . 1 Secondary Targets 3 | . . 2 . 1 . . . . . . . . . . . . . . . . . . . . . . . . . . . Max Gunslinging Chain 1 | . . 1 . 1 . . . . . . . . . . . . . . . . . . . . . . . . . . . Capacitor 5 | . . . . . . . . . . . . . . . . . . . . . . . . . . . . . . . 5 Shots Hit Robots 1597 | . 6 29 . 45 113 37 97 82 50 34 17 25 25 170 10 9 24 10 1 2 96 74 24 57 103 26 69 20 3 11 328 Core Hits 992 | . 2 13 . 18 65 24 74 60 31 9 11 13 12 104 7 22 7 11 . 17 78 18 18 23 37 7 18 5 1 4 283 Critical Hits 143 | . . . . . . . . 1 2 1 . 1 . . . . . . . . 1 7 . 7 34 1 22 3 . 1 62 Critical Kills 50 | . . . . . . . . . . . . 1 . . . . . . . . . 1 . 4 15 . 6 . . . 23 Critical Parts Destroyed 69 | . . . . . . . . 1 2 . . . . . . . . . . . 1 5 . 3 19 1 9 3 . 1 24 Melee Attacks 58 | . . . . . 4 14 7 . 4 2 13 . 2 . . 12 . . . . . . . . . . . . . . . Impact . | . . . . . . . . . . . . . . . . . . . . . . . . . . . . . . . . Slashing 57 | . . . . . 4 14 7 . 3 2 13 . 2 . . 12 . . . . . . . . . . . . . . . Piercing . | . . . . . . . . . . . . . . . . . . . . . . . . . . . . . . . . Sneak Attacks 5 | . . . . . . . . . 1 2 2 . . . . . . . . . . . . . . . . . . . . Combat Hostiles . | . . . . . . . . . . . . . . . . . . . . . . . . . . . . . . . . Follow-up Attacks . | . . . . . . . . . . . . . . . . . . . . . . . . . . . . . . . . Damage Inflicted 65064 | . 43 267 . 687 3036 1062 2205 2730 1276 852 733 835 697 2763 499 1224 852 651 . 1096 5638 2038 1083 1542 3194 1058 1782 1066 89 504 25562 Guns 7445 | . 38 261 . 458 1522 431 1029 282 405 . . . . 457 . . . . . . . . . 1131 434 . 997 . . . . Cannons 37426 | . . . . . 473 166 1137 1233 604 675 468 725 318 2239 176 263 689 357 . 50 2954 1667 464 411 2610 1058 785 1066 89 504 16245 Explosions 19477 | . . . . 229 996 465 . 1215 215 . . 110 379 67 323 961 163 294 . 1046 2684 371 619 . 31 . . . . . 9309 Melee 384 | . . . . . . . . . . 177 207 . . . . . . . . . . . . . . . . . . . . Ramming 213 | . 5 6 . . 45 . 39 . 52 . 58 . . . . . . . . . . . . . . . . . . . 8 Kinetic 9701 | . 18 200 . 443 248 85 841 467 179 . 36 . . 2261 . . . . . . 24 402 . 1131 1272 . 1782 . . . 312 Thermal 12801 | . 20 61 . 15 1747 512 1293 638 745 675 25 110 . 210 102 . 231 44 . . 1357 622 . . 500 487 . 463 . 299 2645 Explosive 17648 | . . . . 229 996 465 . 1215 215 . . . 379 . 323 961 163 250 . 1046 1724 371 62 . . . . . . . 9249 Electromagnetic 24317 | . . . . . . . 32 410 85 . 407 725 318 292 74 263 458 357 . 50 2533 643 1021 411 1422 571 . 603 89 205 13348 Impact . | . . . . . . . . . . . . . . . . . . . . . . . . . . . . . . . . Slashing 384 | . . . . . . . . . . 177 207 . . . . . . . . . . . . . . . . . . . . Piercing . | . . . . . . . . . . . . . . . . . . . . . . . . . . . . . . . . Highest Corruption 10 | . . . . . . . . . 2 . . . . . . . . . . . 6 6 6 6 10 . 2 2 2 . 2 Average Corruption 3 | . . . . . . . . . 1 . . . . . . . . . . . 5 6 6 4 3 . 1 2 1 . 2 Corruption Purged 10 | . . . . . . . . . 2 . . . . . . . . . . . . . . 6 . . . . 2 . . Effects 165 | . . . . . . . . . 5 . . . . . . . . . . . 17 45 15 18 30 . 1 13 21 . . Message Errors 49 | . . . . . . . . . 2 . . . . . . . . . . . 5 7 4 7 8 . 1 6 9 . . Matter Fused 22 | . . . . . . . . . . . . . . . . . . . . . 3 13 3 1 2 . . . . . . Heat Flow Errors 22 | . . . . . . . . . . . . . . . . . . . . . 2 7 4 2 4 . . . 3 . . Energy Discharges 17 | . . . . . . . . . 1 . . . . . . . . . . . 1 3 1 2 2 . . 3 4 . . Parts Rejected 1 | . . . . . . . . . . . . . . . . . . . . . . . . . 1 . . . . . . Data Loss (minor) 21 | . . . . . . . . . 1 . . . . . . . . . . . . 8 2 2 1 . . 2 5 . . Data Loss (major) 2 | . . . . . . . . . . . . . . . . . . . . . 1 1 . . . . . . . . . Misfires 3 | . . . . . . . . . . . . . . . . . . . . . 1 . 1 . 1 . . . . . . Targeting Errors 22 | . . . . . . . . . . . . . . . . . . . . . 3 6 . 3 9 . . 1 . . . Weapon Failures 6 | . . . . . . . . . 1 . . . . . . . . . . . 1 . . 1 2 . . 1 . . . Overload Shots . | . . . . . . . . . . . . . . . . . . . . . . . . . . . . . . . . Overflow Damage 2033 | . . . . 9 86 5 20 106 26 . 75 17 23 15 29 47 49 23 . 59 285 75 22 . 156 79 . 42 4 33 748 Projectiles 1209 | . . . . . 22 . 20 18 . . . 17 23 10 8 . 49 23 . . 152 75 . . 156 79 . 42 4 33 478 Explosions 723 | . . . . 9 64 5 . 88 . . . . . 5 21 47 . . . 59 133 . 22 . . . . . . . 270 Melee 101 | . . . . . . . . . 26 . 75 . . . . . . . . . . . . . . . . . . . . Knockbacks 100 | . . . . . 7 1 30 20 . . 2 . . 23 . . . . . . . 2 . . 14 . . . . . 1 Impact . | . . . . . . . . . . . . . . . . . . . . . . . . . . . . . . . . Kinetic 87 | . . . . . 7 1 22 16 . . 1 . . 23 . . . . . . . 2 . . 14 . . . . . 1 Secondary 13 | . . . . . . . 8 4 . . 1 . . . . . . . . . . . . . . . . . . . . Self-Inflicted Damage 542 | . . . . . 19 19 . 201 . . . 26 . . . 21 . . . 45 138 . . . . . . . . . 73 Shots 18 | . . . . . 1 2 . 6 . . . 1 . . . 1 . . . 1 4 . . . . . . . . . 2 Rammed 24 | . 4 4 . . 4 . 2 . 2 . 5 . . . . . . . . . . . . . . . . . . . 3 Targets Rammed 26 | . 4 4 . . 5 . 3 . 2 . 5 . . . . . . . . . . . . . . . . . . . 3 Kicked . | . . . . . . . . . . . . . . . . . . . . . . . . . . . . . . . . Crushed 2 | . . . . . 1 . 1 . . . . . . . . . . . . . . . . . . . . . . . . Highest Temperature 407 | . 40 117 . 27 291 231 63 75 300 295 90 200 344 30 174 325 183 112 . 57 192 350 310 153 329 150 . 213 180 126 407 Average Temperature 72 | . 15 56 . 4 94 85 27 21 74 137 28 72 149 9 67 110 48 32 . 35 47 97 95 36 85 49 . 63 76 45 76 Received Heat Transfer 4396 | . . 72 . 93 303 261 198 441 45 . 9 81 297 250 63 38 34 . . . 216 165 12 12 49 39 . 55 . 42 1621 Effects 20 | . . . . . 1 . . . 3 4 . . 1 . . . . . . . . . 4 . 1 . . . . . 6 Shutdowns 2 | . . . . . . . . . . . . . . . . . . . . . . . . . . . . . . . 2 Energy Bleed 3 | . . . . . . . . . . . . . . . . . . . . . . . 1 . . . . . . . 2 Interference 12 | . . . . . 1 . . . 3 4 . . . . . . . . . . . . 3 . 1 . . . . . . Matter Decay 2 | . . . . . . . . . . . . . . . . . . . . . . . . . . . . . . . 2 Damage (minor) 1 | . . . . . . . . . . . . . 1 . . . . . . . . . . . . . . . . . . Siege Activations . | . . . . . . . . . . . . . . . . . . . . . . . . . . . . . . . . Robots Corrupted 108 | . . . . . . . . 3 . . 1 . . 1 . 2 3 2 . . 4 3 5 2 6 3 . 5 . 2 66 Combat Hostiles 95 | . . . . . . . . . . . 1 . . 1 . 2 3 . . . 3 2 4 2 5 3 . 5 . 2 62 Parts Fried 205 | . . . . . . . . 1 . . 3 1 4 1 1 4 7 2 . . 11 4 15 4 14 5 . 6 . 3 119 Impact Corruptions 1 | . . . . . . . . . 1 . . . . . . . . . . . . . . . . . . . . . . Robots Melted 3 | . . . . . . . . . . . . . . . . . . . . . . . . . . . . . . . 3 Combat Hostiles 3 | . . . . . . . . . . . . . . . . . . . . . . . . . . . . . . . 3 Parts Melted 29 | . . 2 . . 1 1 2 2 3 . . 2 . 1 . . 1 . . . . . . . 1 . . . . . 13 Heat Transferred 15329 | . 50 185 . 37 3404 885 1998 1073 1332 1221 37 100 . 309 185 . 300 50 . . 1050 400 . . 440 250 . 225 . 175 1623 Parts Sabotaged . | . . . . . . . . . . . . . . . . . . . . . . . . . . . . . . . . Parts Stolen . | . . . . . . . . . . . . . . . . . . . . . . . . . . . . . . . . Parts Stripped . | . . . . . . . . . . . . . . . . . . . . . . . . . . . . . . . . Power Chain Reactions 9 | . . . . . . . . . . . . 1 . 1 . . . 1 . . 5 . . . . . . . . . 1 Missiles Intercepted . | . . . . . . . . . . . . . . . . . . . . . . . . . . . . . . . . Alert | -11 -10 -10 -10 -9 -8 -8 -8 -8 -7 -7 -7 -7 -7 -7 -7 -6 -6 -6 -6 -5 -5 -5 -5 -5 -5 -4 -4 -4 -4 -4 -4 ------- Run | Scr Mat Min Exi Min Mat Gar Mat Gar Fac Was Fac Low Low Zio Dee Pro Fac Low Dat Pro Fac Ext Cet Arc Hub Fac Was Fac Upp Upp War Peak Influence 1007 | . 15 170 . 180 388 590 700 850 526 219 669 . . . . . 158 . . . 1007 389 558 434 895 609 187 187 . . . Average Influence 283 | . 10 60 . 61 126 431 368 606 414 161 216 . . . . . 79 . . . 656 174 238 262 436 477 161 74 . . . Maximum Alert Level 3 | . . . . . 1 2 3 3 2 1 2 . . . . . . . . . 3 1 2 2 3 2 . . . . . Low Security (%) 47 | 100 100 100 . 100 76 . . . . 68 64 . . . . . 100 . . . 5 60 39 22 10 . 100 100 . . . Level 1 21 | . . . . . 23 38 66 17 38 31 6 . . . . . . . . . 4 39 50 58 27 4 . . . . . Level 2 23 | . . . . . . 61 29 43 61 . 29 . . . . . . . . . 42 . 10 19 47 95 . . . . . Level 3 8 | . . . . . . . 4 39 . . . . . . . . . . . . 48 . . . 15 . . . . . . Level 4 . | . . . . . . . . . . . . . . . . . . . . . . . . . . . . . . . . Level 5 . | . . . . . . . . . . . . . . . . . . . . . . . . . . . . . . . . High Security . | . . . . . . . . . . . . . . . . . . . . . . . . . . . . . . . . Max Security . | . . . . . . . . . . . . . . . . . . . . . . . . . . . . . . . . Squads Dispatched 43 | . 3 . . . 3 . 2 . 5 . 5 . . . . . 1 . . . 8 4 . . 6 4 . 2 . . . Investigation 10 | . 1 . . . 2 . 1 . 1 . 1 . . . . . . . . . 1 2 . . . . . 1 . . . Extermination 10 | . . . . . . . . . 3 . 1 . . . . . 1 . . . 2 . . . 2 . . 1 . . . Reinforcement 13 | . 2 . . . 1 . 1 . 1 . 2 . . . . . . . . . 2 2 . . 2 . . . . . . Assault 6 | . . . . . . . . . . . . . . . . . . . . . 3 . . . 2 1 . . . . . Garrison 4 | . . . . . . . . . . . 1 . . . . . . . . . . . . . . 3 . . . . . Intercept . | . . . . . . . . . . . . . . . . . . . . . . . . . . . . . . . . Construction Impeded 6 | . . . . . 1 . 1 . . . 1 . . . . . . . . . 2 1 . . . . . . . . . Haulers Reinforced 2 | . . . . . . . . . 1 . . . . . . . . . . . . . . . 1 . . . . . . Stealth | -11 -10 -10 -10 -9 -8 -8 -8 -8 -7 -7 -7 -7 -7 -7 -7 -6 -6 -6 -6 -5 -5 -5 -5 -5 -5 -4 -4 -4 -4 -4 -4 --------- Run | Scr Mat Min Exi Min Mat Gar Mat Gar Fac Was Fac Low Low Zio Dee Pro Fac Low Dat Pro Fac Ext Cet Arc Hub Fac Was Fac Upp Upp War Distress Signals 23 | . . . . 1 4 . 2 . . . 1 . . . . . 1 . . . 4 3 2 . 4 1 . . . . . Communications Jammed . | . . . . . . . . . . . . . . . . . . . . . . . . . . . . . . . . Distress Signals . | . . . . . . . . . . . . . . . . . . . . . . . . . . . . . . . . Times Spotted 695 | . 4 15 . 13 35 11 28 27 10 6 17 13 15 54 4 10 10 2 . 7 48 28 16 44 57 15 11 13 . 4 178 Peak Tracking Total 17 | . 3 3 . 4 4 4 6 4 3 2 5 5 7 5 3 4 4 2 . 5 8 5 5 2 6 4 3 4 . 3 17 Tactical Retreats 41 | . . 1 . . 4 2 . 4 . . 3 1 . 3 . 1 2 . . . 1 . . . 2 2 4 1 . . 10 Traps | -11 -10 -10 -10 -9 -8 -8 -8 -8 -7 -7 -7 -7 -7 -7 -7 -6 -6 -6 -6 -5 -5 -5 -5 -5 -5 -4 -4 -4 -4 -4 -4 ------- Run | Scr Mat Min Exi Min Mat Gar Mat Gar Fac Was Fac Low Low Zio Dee Pro Fac Low Dat Pro Fac Ext Cet Arc Hub Fac Was Fac Upp Upp War Traps Triggered 14 | . . . . . 1 2 . 2 1 . . . . . . . . . . . 1 4 . . 1 1 . 1 . . . Indirectly . | . . . . . . . . . . . . . . . . . . . . . . . . . . . . . . . . Trap Hack Attempts . | . . . . . . . . . . . . . . . . . . . . . . . . . . . . . . . . Triggered . | . . . . . . . . . . . . . . . . . . . . . . . . . . . . . . . . Disarmed . | . . . . . . . . . . . . . . . . . . . . . . . . . . . . . . . . Reprogrammed 8 | . . . . . . . . . . . . . . . . . . . . . . 2 . . 6 . . . . . . Reused 6 | . . . . . . . . . . . . . . . . . . . . . . . . . 6 . . . . . . Traps Extracted . | . . . . . . . . . . . . . . . . . . . . . . . . . . . . . . . . Installed . | . . . . . . . . . . . . . . . . . . . . . . . . . . . . . . . . Triggered 44 | . . . . . . . . . . . . . . . . . . . . . . . . . 6 . . 1 . 1 36 Machines | -11 -10 -10 -10 -9 -8 -8 -8 -8 -7 -7 -7 -7 -7 -7 -7 -6 -6 -6 -6 -5 -5 -5 -5 -5 -5 -4 -4 -4 -4 -4 -4 ---------- Run | Scr Mat Min Exi Min Mat Gar Mat Gar Fac Was Fac Low Low Zio Dee Pro Fac Low Dat Pro Fac Ext Cet Arc Hub Fac Was Fac Upp Upp War Machines Disabled 39 | . . . . 1 1 3 2 5 . . . . . . 2 . 1 . . . 1 2 1 3 6 . . . . . 11 Max in Single Turn 2 | . . . . . 1 2 1 2 . . . . . . . . 1 . . . 1 2 . 1 1 . . . . . 2 Garrison Access 6 | . . . . . . . . . . . 1 . . . . . 2 . . . 1 . . . 1 . . 1 . . . Garrison Relay 2 | . . . . . . 1 . 1 . . . . . . . . . . . . . . . . . . . . . . . Phase Generator 2 | . . . . . . 1 . 1 . . . . . . . . . . . . . . . . . . . . . . . Network Hub 4 | . . . . . . . . . . . . . . . . . . . . . . . . . 4 . . . . . . Machines Sabotaged . | . . . . . . . . . . . . . . . . . . . . . . . . . . . . . . . . Garrisons Compromised . | . . . . . . . . . . . . . . . . . . . . . . . . . . . . . . . . Overloaded Fab Kills . | . . . . . . . . . . . . . . . . . . . . . . . . . . . . . . . . Fab Network Shutdowns 1 | . . . . . . . . . . . . . . . . . . . . . 1 . . . . . . . . . . Hacking | -11 -10 -10 -10 -9 -8 -8 -8 -8 -7 -7 -7 -7 -7 -7 -7 -6 -6 -6 -6 -5 -5 -5 -5 -5 -5 -4 -4 -4 -4 -4 -4 --------- Run | Scr Mat Min Exi Min Mat Gar Mat Gar Fac Was Fac Low Low Zio Dee Pro Fac Low Dat Pro Fac Ext Cet Arc Hub Fac Was Fac Upp Upp War Machines Accessed 83 | . 1 . 1 . 6 . 8 . 8 . 4 . 1 . . . 7 1 4 . 7 9 2 . 8 3 . 5 3 . 5 Terminals 46 | . 1 . . . 5 . 5 . 6 . 1 . . . . . 4 . . . 3 9 2 . 8 . . 1 1 . . Fabricators 6 | . . . . . . . . . 1 . 1 . . . . . . . . . 2 . . . . 1 . 1 . . . Repair Stations 3 | . . . . . . . 1 . . . . . . . . . 1 . . . . . . . . . . 1 . . . Recycling Units 5 | . . . . . . . 1 . 1 . 1 . . . . . . . . . 1 . . . . 1 . . . . . Scanalyzers 1 | . . . . . . . . . . . . . . . . . . . . . . . . . . . . 1 . . . Garrison Access 8 | . . . . . 1 . 1 . . . 1 . . . . . 2 . . . 1 . . . . 1 . 1 . . . Total Hacks 319 | . 3 . 1 . 24 . 30 . 28 . 9 . 1 . . . 15 1 27 . 38 33 8 . 28 9 . 41 12 . 11 Successful 195 | . . . 1 . 14 . 20 . 17 . 5 . 1 . . . 3 1 27 . 20 22 7 . 13 5 . 18 10 . 11 Failed 121 | . 3 . . . 9 . 10 . 11 . 4 . . . . . 12 . . . 18 10 1 . 15 4 . 23 1 . . Catastrophic 22 | . 1 . . . 1 . 2 . 2 . 1 . . . . . 3 . . . 4 3 . . 2 . . 2 1 . . Database Lockouts 3 | . . . . . 1 . . . . . . . . . . . . . . . . 1 . . . . . . 1 . . Manual 159 | . 3 . . . 16 . 12 . 12 . 2 . . 4 . . 7 . . . 27 32 8 . 12 3 . 17 3 . 1 Terminals 200 | . 3 . . . 22 . 20 . 23 . 5 . . . . . 12 . . . 26 33 8 . 28 . . 16 4 . . Fabricators 30 | . . . . . . . . . 3 . 2 . . . . . . . . . 9 . . . . 4 . 12 . . . Repair Stations 20 | . . . . . . . 8 . . . . . . . . . 1 . . . . . . . . . . 11 . . . Recycling Units 7 | . . . . . . . 1 . 2 . 1 . . . . . . . . . 2 . . . . 1 . . . . . Scanalyzers 1 | . . . . . . . . . . . . . . . . . . . . . . . . . . . . 1 . . . Garrison Access 12 | . . . . . 2 . 1 . . . 1 . . . . . 2 . . . 1 . . . . 4 . 1 . . . Terminal Hacks 124 | . . . 1 . 7 . 6 . 9 . 3 . 1 . . . 1 1 27 . 9 18 4 . 11 . . 5 10 . 11 Record 30 | . . . 1 . . . . . . . . . . . . . . . 11 . . . . . . . . . 8 . 10 Part Schematic 13 | . . . . . . . . . 1 . 1 . . . . . . . 8 . . 2 . . . . . . 1 . . Robot Schematic 5 | . . . . . . . . . . . . . . . . . . . 5 . . . . . . . . . . . . Robot Analysis 8 | . . . . . 2 . . . . . . . . . . . . . . . . 5 1 . . . . . . . . Prototype ID Bank 10 | . . . . . 1 . 2 . . . . . . . . . . . 3 . . . . . 3 . . 1 . . . Open Door 5 | . . . . . . . . . . . . . 1 . . . . 1 . . . . 1 . . . . . 1 . 1 Branch Access Points 5 | . . . . . . . . . 1 . 1 . . . . . 1 . . . 1 . . . . . . 1 . . . Emergency Access Points 1 | . . . . . . . . . 1 . . . . . . . . . . . . . . . . . . . . . . Terminal Index 1 | . . . . . . . . . . . . . . . . . . . . . . . . . . . . 1 . . . Repair Station Index 2 | . . . . . . . . . . . . . . . . . . . . . . . . . 1 . . 1 . . . Unreport Threat 14 | . . . . . . . 2 . . . . . . . . . . . . . 5 3 2 . 2 . . . . . . Locate Traps 14 | . . . . . 1 . . . 5 . . . . . . . . . . . 1 3 . . 3 . . 1 . . . Reprogram Traps 2 | . . . . . . . . . . . . . . . . . . . . . . 1 . . 1 . . . . . . Transport Status 2 | . . . . . 1 . 1 . . . . . . . . . . . . . . . . . . . . . . . . Recall Investigation 3 | . . . . . 1 . . . . . . . . . . . . . . . . 2 . . . . . . . . . Recall Extermination 1 | . . . . . . . . . . . . . . . . . . . . . 1 . . . . . . . . . . Recall Reinforcements 2 | . . . . . . . . . . . . . . . . . . . . . . 2 . . . . . . . . . Recall Assault 1 | . . . . . . . . . . . . . . . . . . . . . 1 . . . . . . . . . . Hauler Manifests 3 | . . . . . 1 . 1 . . . 1 . . . . . . . . . . . . . . . . . . . . Zone Layout 2 | . . . . . . . . . 1 . . . . . . . . . . . . . . . 1 . . . . . . Fabricator Hacks 12 | . . . . . . . . . 2 . . . . . . . . . . . 5 . . . . 1 . 4 . . . Load Schematic 6 | . . . . . . . . . 1 . . . . . . . . . . . 2 . . . . 1 . 2 . . . Build 6 | . . . . . . . . . 1 . . . . . . . . . . . 3 . . . . . . 2 . . . Repair Station Hacks 11 | . . . . . . . 8 . . . . . . . . . . . . . . . . . . . . 3 . . . Scan Component 6 | . . . . . . . 4 . . . . . . . . . . . . . . . . . . . . 2 . . . Repair 5 | . . . . . . . 4 . . . . . . . . . . . . . . . . . . . . 1 . . . Recycling Unit Hacks 3 | . . . . . . . . . . . . . . . . . . . . . 2 . . . . 1 . . . . . Process 1 | . . . . . . . . . . . . . . . . . . . . . 1 . . . . . . . . . . Retrieve Matter 1 | . . . . . . . . . . . . . . . . . . . . . 1 . . . . . . . . . . Retrieve Components 1 | . . . . . . . . . . . . . . . . . . . . . . . . . . 1 . . . . . Scanalyzer 1 | . . . . . . . . . . . . . . . . . . . . . . . . . . . . 1 . . . Insert Component 1 | . . . . . . . . . . . . . . . . . . . . . . . . . . . . 1 . . . Garrison Access Hacks 8 | . . . . . 1 . 1 . . . 1 . . . . . 2 . . . 1 . . . . 1 . 1 . . . Unlock Access 2 | . . . . . 1 . 1 . . . . . . . . . . . . . . . . . . . . . . . . Seal Access 5 | . . . . . . . . . . . 1 . . . . . 2 . . . 1 . . . . . . 1 . . . Coupler Status 1 | . . . . . . . . . . . . . . . . . . . . . . . . . . 1 . . . . . Unauthorized Hacks 36 | . . . . . 6 . 5 . 6 . 1 . . . . . . . . . 3 4 3 . 2 2 . 4 . . . Terminals 24 | . . . . . 6 . 4 . 4 . . . . . . . . . . . 1 4 3 . 2 . . . . . . Track 8 | . . . . . 4 . 2 . . . . . . . . . . . . . . . 2 . . . . . . . . Botnet 16 | . . . . . 2 . 2 . 4 . . . . . . . . . . . 1 4 1 . 2 . . . . . . Fabricators 7 | . . . . . . . . . 1 . . . . . . . . . . . 2 . . . . . . 4 . . . Report 1 | . . . . . . . . . . . . . . . . . . . . . . . . . . . . 1 . . . Prioritize 3 | . . . . . . . . . 1 . . . . . . . . . . . 1 . . . . . . 1 . . . Siphon 1 | . . . . . . . . . . . . . . . . . . . . . . . . . . . . 1 . . . Haulers 2 | . . . . . . . . . . . . . . . . . . . . . 1 . . . . . . 1 . . . Repair Stations . | . . . . . . . . . . . . . . . . . . . . . . . . . . . . . . . . Recycling Units 3 | . . . . . . . 1 . 1 . 1 . . . . . . . . . . . . . . . . . . . . Tunnel 3 | . . . . . . . 1 . 1 . 1 . . . . . . . . . . . . . . . . . . . . Scanalyzers . | . . . . . . . . . . . . . . . . . . . . . . . . . . . . . . . . Garrison Access 2 | . . . . . . . . . . . . . . . . . . . . . . . . . . 2 . . . . . Restock 1 | . . . . . . . . . . . . . . . . . . . . . . . . . . 1 . . . . . Reprogram 1 | . . . . . . . . . . . . . . . . . . . . . . . . . . 1 . . . . . Data Cores Recovered 2 | . . . . . . . 1 . 1 . . . . . . . . . . . . . . . . . . . . . . Used 1 | . . . . . . . 1 . . . . . . . . . . . . . . . . . . . . . . . . Hacking Detections 52 | . 1 . . . 5 . 6 . 8 . 2 . . . . . 5 . . . 6 6 . . 8 1 . 3 1 . . Full Trace Events 3 | . 1 . . . . . . . . . . . . . . . . . . . 1 . . . . . . 1 . . . Feedback Events . | . . . . . . . . . . . . . . . . . . . . . . . . . . . . . . . . Feedback Blocked . | . . . . . . . . . . . . . . . . . . . . . . . . . . . . . . . . Robot Schematics Acquired 5 | . . . . . . . . . . . . . . . . . . . 5 . . . . . . . . . . . . Robots Built . | . . . . . . . . . . . . . . . . . . . . . . . . . . . . . . . . Matter . | . . . . . . . . . . . . . . . . . . . . . . . . . . . . . . . . Time . | . . . . . . . . . . . . . . . . . . . . . . . . . . . . . . . . Total Robot Build Rating . | . . . . . . . . . . . . . . . . . . . . . . . . . . . . . . . . Part Schematics Acquired 13 | . . . . . . . . . 1 . 1 . . . . . . . 8 . . 2 . . . . . . 1 . . Parts Built 5 | . . . . . . . . . 1 . . . . . . . . . . . 2 . . . . . . 2 . . . Matter 1294 | . . . . . . . . . 168 . . . . . . . . . . . 570 . . . . . . 556 . . . Time 565 | . . . . . . . . . 84 . . . . . . . . . . . 228 . . . . . . 253 . . . Total Part Build Rating 26 | . . . . . . . . . 4 . . . . . . . . . . . 10 . . . . . . 12 . . . Parts Repaired 5 | . . . . . . . 4 . . . . . . . . . . . . . . . . . . . . 1 . . . Time 172 | . . . . . . . 150 . . . . . . . . . . . . . . . . . . . . 22 . . . Parts Recycled . | . . . . . . . . . . . . . . . . . . . . . . . . . . . . . . . . Recycled Matter 186 | . . . . . . . . . . . . . . . . . . . . . 186 . . . . . . . . . . Retrieved Matter 186 | . . . . . . . . . . . . . . . . . . . . . 186 . . . . . . . . . . Retrieved Components 1 | . . . . . . . . . . . . . . . . . . . . . . . . . . 1 . . . . . Parts Scanalyzed . | . . . . . . . . . . . . . . . . . . . . . . . . . . . . . . . . Part Schematics Acquired . | . . . . . . . . . . . . . . . . . . . . . . . . . . . . . . . . Parts Damaged . | . . . . . . . . . . . . . . . . . . . . . . . . . . . . . . . . Bothacking | -11 -10 -10 -10 -9 -8 -8 -8 -8 -7 -7 -7 -7 -7 -7 -7 -6 -6 -6 -6 -5 -5 -5 -5 -5 -5 -4 -4 -4 -4 -4 -4 ------------ Run | Scr Mat Min Exi Min Mat Gar Mat Gar Fac Was Fac Low Low Zio Dee Pro Fac Low Dat Pro Fac Ext Cet Arc Hub Fac Was Fac Upp Upp War Used RIF Installer 2 | . . . . . . 1 . 1 . . . . . . . . . . . . . . . . . . . . . . . Patrol Navigation 1 | . . . . . . . . 1 . . . . . . . . . . . . . . . . . . . . . . . Robots Hacked 29 | . . . . . . . . . 1 3 . . 6 . 2 . . . 1 . . . 1 2 7 5 . . 1 . . Non-combat 8 | . . . . . . . . . 1 . . . . . . . . . . . . . . . 6 1 . . . . . Combat 21 | . . . . . . . . . . 3 . . 6 . 2 . . . 1 . . . 1 2 1 4 . . 1 . . Robot Hacks Applied 30 | . . . . . . . . . 1 3 . . 6 . 2 . . . 1 . . . 1 2 8 5 . . 1 . . parse_system 8 | . . . . . . . . . . . . . . . 2 . . . 1 . . . 1 2 1 . . . 1 . . find_chute 2 | . . . . . . . . . 1 . . . . . . . . . . . . . . . . 1 . . . . . deconstruct_machine 2 | . . . . . . . . . . . . . . . . . . . . . . . . . 2 . . . . . . drop_inventory 4 | . . . . . . . . . . . . . . . . . . . . . . . . . 4 . . . . . . recall_reinforcements 1 | . . . . . . . . . . . . . . . . . . . . . . . . . 1 . . . . . . ignore_targets 3 | . . . . . . . . . . 3 . . . . . . . . . . . . . . . . . . . . . reboot_system 1 | . . . . . . . . . . . . . . . . . . . . . . . . . . 1 . . . . . streamctrl_high 1 | . . . . . . . . . . . . . 1 . . . . . . . . . . . . . . . . . . formatsys_high 8 | . . . . . . . . . . . . . 5 . . . . . . . . . . . . 3 . . . . . Relay Couplers Released 19 | . . . . . . 5 . 4 . . 1 . . . . . . . . . . . . . 3 4 . 2 . . . Machine Destruction 12 | . . . . . . 5 . 4 . . 1 . . . . . . . . . . . . . . . . 2 . . . Programmers 7 | . . . . . . . . . . . . . . . . . . . . . . . . . 3 4 . . . . . Attached 7 | . . . . . . . . . . 1 . . 3 . . . . . . . . . . . 1 2 . . . . . Robots Rewired 15 | . . . . . . . . . . . . 1 2 . . . . 1 . . 1 10 . . . . . . . . . Allies Hacked 3 | . . . . . . . . . . . . . . . . . . . . . . . . . 1 2 . . . . . Hacks Repelled . | . . . . . . . . . . . . . . . . . . . . . . . . . . . . . . . . Allies | -11 -10 -10 -10 -9 -8 -8 -8 -8 -7 -7 -7 -7 -7 -7 -7 -6 -6 -6 -6 -5 -5 -5 -5 -5 -5 -4 -4 -4 -4 -4 -4 -------- Run | Scr Mat Min Exi Min Mat Gar Mat Gar Fac Was Fac Low Low Zio Dee Pro Fac Low Dat Pro Fac Ext Cet Arc Hub Fac Was Fac Upp Upp War Total Allies 66 | . . 6 . . . . . . . 18 . 1 8 . 1 . . 1 . 1 1 20 5 . . 4 . . . . . Largest Group 18 | . . 6 6 3 . . . . . 18 12 8 6 5 1 1 . 1 1 2 2 11 13 6 5 4 . . . . . Highest-Rated Group 883 | . . 111 111 40 . . . . . 456 330 232 128 112 118 118 . 58 58 152 152 496 883 494 466 177 . . . . . Highest-Rated Ally 156 | . . 31 31 16 . . . . . 35 33 32 49 32 118 118 . 58 58 94 94 156 156 99 99 49 . . . . . Total Orders 90 | . . . . . . . . . . . . . 7 . . . . . . . 6 . 1 4 10 2 . . 18 33 9 STAY 2 | . . . . . . . . . . . . . . . . . . . . . 1 . . . 1 . . . . . . GOTO 37 | . . . . . . . . . . . . . 5 . . . . . . . 1 . 1 2 8 1 . . 7 12 . ROAM 2 | . . . . . . . . . . . . . . . . . . . . . . . . . 1 . . . . 1 . FOLLOW 10 | . . . . . . . . . . . . . 2 . . . . . . . 2 . . 2 . . . . . 3 1 EXPLORE 3 | . . . . . . . . . . . . . . . . . . . . . 2 . . . . . . . 1 . . RETURN 36 | . . . . . . . . . . . . . . . . . . . . . . . . . . 1 . . 10 17 8 Ally Attacks 925 | . . 17 . 35 . . . . . 197 89 32 6 60 12 . . . . 4 25 82 78 25 63 25 . . 44 77 54 Total Damage 23411 | . . 129 . 380 . . . . . 4088 1296 547 127 1502 1885 . . . . 140 829 2660 1996 1059 3260 729 . . 574 1294 916 Kills 166 | . . 4 . 8 . . . . . 8 12 3 2 29 8 . . . . 3 5 17 14 1 19 3 . . 11 16 3 Allies Corrupted 4 | . . . . . . . . . . . . . . . . . . . . . . 1 1 . 2 . . . . . . Allies Melted . | . . . . . . . . . . . . . . . . . . . . . . . . . . . . . . . . Intel | -11 -10 -10 -10 -9 -8 -8 -8 -8 -7 -7 -7 -7 -7 -7 -7 -6 -6 -6 -6 -5 -5 -5 -5 -5 -5 -4 -4 -4 -4 -4 -4 ------- Run | Scr Mat Min Exi Min Mat Gar Mat Gar Fac Was Fac Low Low Zio Dee Pro Fac Low Dat Pro Fac Ext Cet Arc Hub Fac Was Fac Upp Upp War Robot Analysis Total 8 | . . . . . 2 . . . . . . . . . . . . . . . . 5 1 . . . . . . . . Derelict Logs Recovered 14 | . . 2 . 1 . . . . . . . 3 1 1 . 1 . 2 . 1 . . . . . . . . 2 . . Drone Launches 54 | . . . . . . . . . . . . . . . . . . . . . 5 . . . 2 1 . . 13 25 8 Drone Recoveries 46 | . . . . . . . . . . . . . . . . . . . . . . . . . . 1 . . 13 25 7 Exploration | -11 -10 -10 -10 -9 -8 -8 -8 -8 -7 -7 -7 -7 -7 -7 -7 -6 -6 -6 -6 -5 -5 -5 -5 -5 -5 -4 -4 -4 -4 -4 -4 ------------- Run | Scr Mat Min Exi Min Mat Gar Mat Gar Fac Was Fac Low Low Zio Dee Pro Fac Low Dat Pro Fac Ext Cet Arc Hub Fac Was Fac Upp Upp War Turns Passed 50556 | 81 264 1301 875 1988 1524 903 1463 1306 1310 472 769 2189 3158 13093 791 843 1221 1710 195 691 1810 1454 402 989 1542 542 447 932 2366 1231 2694 Spaces Moved 18874 | 43 145 740 451 786 559 330 499 473 525 183 326 1055 1433 1104 499 450 651 1103 133 412 839 759 203 150 773 300 211 556 1437 784 962 Core 4 | 4 . . . . . . . . . . . . . . . . . . . . . . . . . . . . . . . Treads 8285 | 39 145 740 451 786 559 330 499 473 525 183 326 1055 1433 676 . . . . . . . . . . . . . . . . 65 Legs 19 | . . . . . . . . . . . . . . . . . . . . . . . . . . . . . . . 19 Wheels 10566 | . . . . . . . . . . . . . . 428 499 450 651 1103 133 412 839 759 203 150 773 300 211 556 1437 784 878 Hover . | . . . . . . . . . . . . . . . . . . . . . . . . . . . . . . . . Flight . | . . . . . . . . . . . . . . . . . . . . . . . . . . . . . . . . Fastest Speed 50 | 50 160 160 160 200 200 200 200 200 205 200 200 200 180 150 150 150 150 125 135 135 125 125 125 125 125 135 145 135 145 145 120 Average Speed 166 | 149 160 160 191 200 200 200 200 220 206 200 200 200 199 180 150 150 158 146 135 135 132 125 132 134 135 140 145 143 145 145 154 Slowest Speed 310 | 160 160 160 200 200 200 200 240 225 225 225 200 200 200 200 150 150 160 160 135 135 135 125 135 135 145 145 145 145 145 145 310 Overloaded Moves . | . . . . . . . . . . . . . . . . . . . . . . . . . . . . . . . . Propulsion Burnouts . | . . . . . . . . . . . . . . . . . . . . . . . . . . . . . . . . Robots Hopped . | . . . . . . . . . . . . . . . . . . . . . . . . . . . . . . . . Cave-ins Triggered . | . . . . . . . . . . . . . . . . . . . . . . . . . . . . . . . . Exploration Rate (%) 63 | 4 26 100 88 100 47 47 52 82 19 88 14 96 92 83 68 58 23 91 74 63 30 85 73 80 69 10 99 14 96 83 86 Regions Visited 31 Branch Regions 18 Pre-discovered Areas 11 | . . 1 1 . . . 1 . 1 . 1 1 . 1 . . . 2 1 . . . . . . . . . 1 . . Known Exits Taken 20 | . . . . . 1 . 1 . . . 1 1 1 1 1 1 1 1 1 1 1 1 1 1 1 . . 1 1 1 . Unknown Exits Taken 5 | 1 1 1 1 1 . . . . . . . . . . . . . . . . . . . . . . . . . . . Scrap Searched 22 | . . 1 . 1 . . . . . . . 3 4 2 . 3 . 2 . 2 . . . . . . . . 4 . . Spaces Dug 178 | . . . . 7 4 3 7 4 2 . 9 . 2 . . 23 22 15 . . 35 1 . . 3 . . 3 . . 38 Terrain Destroyed 1295 | . . . . 13 83 85 16 148 17 1 9 . 27 2 17 109 39 63 . 39 114 27 25 17 30 2 11 28 . . 373 Melee 39 | . . . . . 4 3 7 . 2 . 9 . 2 . . 12 . . . . . . . . . . . . . . . Projectile 237 | . . . . . 6 . 9 1 . 1 . . . . . . 27 11 . . 44 13 . 17 30 2 11 5 . . 60 AOE 1019 | . . . . 13 73 82 . 147 15 . . . 25 2 17 97 12 52 . 39 70 14 25 . . . . 23 . . 313 Actions | -11 -10 -10 -10 -9 -8 -8 -8 -8 -7 -7 -7 -7 -7 -7 -7 -6 -6 -6 -6 -5 -5 -5 -5 -5 -5 -4 -4 -4 -4 -4 -4 --------- Run | Scr Mat Min Exi Min Mat Gar Mat Gar Fac Was Fac Low Low Zio Dee Pro Fac Low Dat Pro Fac Ext Cet Arc Hub Fac Was Fac Upp Upp War Total 35484 | 57 166 808 463 1140 806 454 835 624 671 250 396 1098 1690 12011 525 573 773 1172 146 535 1352 1166 282 847 1069 397 265 660 1717 865 1671 Wait 13527 | 1 . 39 . 299 78 19 206 20 41 4 21 6 199 10790 . 82 31 10 10 77 273 225 6 604 72 37 . 30 262 67 18 Move 18847 | 42 144 739 450 785 559 329 499 472 525 182 325 1054 1432 1103 498 449 650 1102 132 411 838 758 202 149 772 300 210 555 1436 783 962 Hop . | . . . . . . . . . . . . . . . . . . . . . . . . . . . . . . . . Pick Up 287 | 6 3 . 9 12 20 5 19 20 9 4 5 3 1 7 5 2 12 5 . 10 27 20 4 1 18 6 3 11 3 1 36 Fast Attach 123 | 6 3 . 1 . 8 . 5 2 8 2 . . 1 . . . 2 6 . . 4 3 6 3 7 4 1 6 2 . 43 Attach 209 | 1 . 1 . 6 6 4 5 10 1 . . . 7 5 1 2 2 5 . 8 23 14 2 1 12 9 3 10 2 2 67 Detach 84 | 1 1 . 1 . 4 . . 1 4 . . . 3 . . . . 1 . . 2 5 1 1 6 7 . 7 1 . 38 Swap 362 | . 1 . . 2 17 5 11 12 30 7 14 11 17 11 9 12 19 5 2 10 39 33 19 5 48 4 1 . 1 2 15 Drop 275 | . 5 . 2 1 20 1 19 9 13 11 4 4 1 . 1 1 11 10 . 10 25 14 12 4 24 6 3 15 5 2 42 Fire 1636 | . 5 25 . 35 85 73 61 76 34 38 9 17 26 95 11 13 46 27 2 9 111 66 30 79 109 24 44 26 5 8 447 Melee 58 | . . . . . 4 14 7 . 4 2 13 . 2 . . 12 . . . . . . . . . . . . . . . Ram 2 | . . . . . . . . . . . . . . . . . . . . . . . . . . . . . . . 2 Kick . | . . . . . . . . . . . . . . . . . . . . . . . . . . . . . . . . Crush 24 | . 4 4 . . 5 . 3 . 2 . 5 . . . . . . . . . . . . . . . . . . . 1 Escape Stasis 38 | . . . . . . 4 . 2 . . . . . . . . . . . . 8 24 . . . . . . . . . Rewire 9 | . . . . . . . . . . . . 3 1 . . . . 1 . . . 4 . . . . . . . . . Trap . | . . . . . . . . . . . . . . . . . . . . . . . . . . . . . . . . Miscellaneous 3 | . . . . . . . . . . . . . . . . . . . . . 2 . . . 1 . . . . . . Route ------- -11/Scrapyard -10/Materials -10/Mines (discovered 3 exits: [*Mat x2] / *Exi) -10/Exiles (discovered 2 exits: [*Min x2]) -9/Mines (discovered 2 exits: *Mat x2) -8/Materials (discovered 4 exits: *Fac x3 / Gar) -8/Garrison -8/Materials (discovered 2 exits: *Fac / Gar) -8/Garrison (discovered 3 exits: *Fac x3) -7/Factory (discovered 4 exits: *Fac / *Sto / *Low x2) -7/Waste -7/Factory (discovered 4 exits: Sto x2 / *Low x2) -7/Lower Caves -7/Lower Caves (discovered 2 exits: *Fac / *Zio) -7/Zion (discovered 2 exits: *Dee / *Pro) -7/Deep Caves -6/Proximity Caves -6/Factory (discovered 2 exits: *Low x2) -6/Lower Caves (discovered 2 exits: *Low / *Dat) -6/Data Miner -5/Proximity Caves -5/Factory (discovered 5 exits: *Fac / *Upp x2 / *Ext x2) -5/Extension (discovered 3 exits: *Fac x2 / *Cet) -5/Cetus (discovered 2 exits: *Fac / *Arc) -5/Archives (discovered 2 exits: *Fac / *Hub) -5/Hub_04(d) (discovered 3 exits: *Fac x3) -4/Factory -4/Waste -4/Factory (discovered 2 exits: *Upp x2) -4/Upper Caves -4/Upper Caves (discovered 2 exits: *Res / *War) -4/Warlord (discovered 1 exit: [*Pro]) History --------- Turn | Location | Event 3 | -11/Scrapyard | Discovered new exit (range 15) 82 | -11/Scrapyard | Entered Materials 288 | -10/Materials | Discovered new exit (range 14) 312 | -10/Materials | Build established: Mutant 346 | -10/Materials | Entered Mines 738 | -10/Mines | Deemed a non-threat by the Exiles lab entrance 739 | -10/Mines | Discovered new exit (range 5) 808 | -10/Mines | Learned 4 Materials zone layouts 938 | -10/Mines | Learned location of Mines (-9) 959 | -10/Mines | Discovered new exit (range 10) 1003 | -10/Mines | Discovered new exit (range 8) 1135 | -10/Mines | Escorted by a lone wolf Derelict 1255 | -10/Mines | Assisted by bots powering up and referring to "LRC-V3" 1647 | -10/Mines | Entered Exiles 1647 | -10/Exiles | Accompanied by 6 allies 1668 | -10/Exiles | Discovered new exit (range 15) 1677 | -10/Exiles | Led the pair of lost Derelicts to a safe place 1718 | -10/Exiles | Met 8R-AWN 1743 | -10/Exiles | Met EX-HEX 1892 | -10/Exiles | Visited The Gauntlet 2049 | -10/Exiles | Met EX-DEC 2085 | -10/Exiles | Build established: Hauler-Mutant 2099 | -10/Exiles | Learned location of Zion (-7) 2294 | -10/Exiles | Met EX-BIN 2498 | -10/Exiles | Discovered new exit (range 14) 2522 | -10/Exiles | Entered Mines 2522 | -9/Mines | Accompanied by 3 allies 2597 | -9/Mines | Assembled infested the area 2602 | -9/Mines | Assisted by a Guerilla fighting off Assembled 3061 | -9/Mines | Learned Materials stockpile data 3398 | -9/Mines | Discovered new exit (range 7) 3403 | -9/Mines | Core integrity fell below 50% 3612 | -9/Mines | Discovered new exit (range 5) 3619 | -9/Mines | Received a Rocket Launcher from a helpful Derelict 3870 | -9/Mines | Lost 5 parts (1p2n2w) 4510 | -9/Mines | Entered Materials 4510 | -8/Materials | Evolved 4 slots: Utility x4 4511 | -8/Materials | Identified exit to Factory 4807 | -8/Materials | Central database locked down 4926 | -8/Materials | Discovered exit to Factory (range 3) 5926 | -8/Materials | Discovered exit to Factory (range 16) 6032 | -8/Materials | Identified exit to Garrison 6034 | -8/Materials | Entered Garrison 6044 | -8/Garrison | Installed Relay Interface Framework 6072 | -8/Garrison | Build established: Scavenger-Mutant 6336 | -8/Garrison | Triggered checkpoint 6382 | -8/Garrison | Garrison Relay disabled 6419 | -8/Garrison | Build established: Hauler-Mutant 6713 | -8/Garrison | Phase Generator disabled 6806 | -8/Garrison | Triggered checkpoint 6919 | -8/Garrison | Discovered new exit (range 9) 6937 | -8/Garrison | Entered Materials 8048 | -8/Materials | Repaired Hcp. Storage Unit 8086 | -8/Materials | Repaired Particle Charger 8146 | -8/Materials | Repaired Hvy. Particle Gun 8172 | -8/Materials | Repaired Lgt. Treads 8196 | -8/Materials | Discovered exit to Factory (range 16) 8400 | -8/Materials | Identified exit to Garrison 8400 | -8/Materials | Entered Garrison 8457 | -8/Garrison | Lost 3 parts (2u1w) 8488 | -8/Garrison | Triggered checkpoint 8624 | -8/Garrison | Garrison Relay disabled 8759 | -8/Garrison | Phase Generator disabled 8942 | -8/Garrison | Triggered checkpoint 9037 | -8/Garrison | Discovered exit to Factory (range 10) 9170 | -8/Garrison | Triggered checkpoint 9321 | -8/Garrison | Discovered exit to Factory (range 14) 9506 | -8/Garrison | Triggered checkpoint 9612 | -8/Garrison | Core integrity fell below 50% 9618 | -8/Garrison | Discovered exit to Factory (range 14) 9697 | -8/Garrison | Expanded RIF knowledge: Patrol Navigation 9706 | -8/Garrison | Entered Factory 9706 | -7/Factory | Evolved 2 slots: Power x1, Utility x1 9986 | -7/Factory | Build established: Bothacker-Mutant 10337 | -7/Factory | Discovered new exit (range 16) 10393 | -7/Factory | Identified exit to Storage 10393 | -7/Factory | Identified exit to Lower Caves 10957 | -7/Factory | Fabricated Lrn. Sensor Array (x1) 11016 | -7/Factory | Sucked down chute 11016 | -7/Factory | Entered Waste 11048 | -7/Waste | Spotted C-40 Crusher 11071 | -7/Waste | Spotted C-40 Crusher 11126 | -7/Waste | Destroyed C-40 Crusher 11150 | -7/Waste | Found Damper Plating 11166 | -7/Waste | Found Damper Plating 11178 | -7/Waste | Spotted C-40 Crusher 11198 | -7/Waste | Warlord forces began an assault 11204 | -7/Waste | Destroyed C-40 Crusher 11208 | -7/Waste | Spotted C-40 Crusher 11220 | -7/Waste | Allies destroyed C-40 Crusher 11226 | -7/Waste | Spotted C-40 Crusher 11236 | -7/Waste | Allies destroyed C-40 Crusher 11247 | -7/Waste | Allies destroyed C-40 Crusher 11277 | -7/Waste | Allies destroyed C-40 Crusher 11430 | -7/Waste | Discovered new exit (range 11) 11476 | -7/Waste | Identified exit to Factory 11488 | -7/Waste | Entered Factory 11488 | -7/Factory | Accompanied by 12 allies 11990 | -7/Factory | Garrison activated, responded to threat 12257 | -7/Factory | Entered Lower Caves 12257 | -7/Lower Caves | Accompanied by 8 allies 12321 | -7/Lower Caves | Ambushed by wild Derelicts 12995 | -7/Lower Caves | Encountered a Warlord checkpoint 13075 | -7/Lower Caves | Attracted the attention of an 0b10 outpost 13280 | -7/Lower Caves | Learned Factory terminal intel 13513 | -7/Lower Caves | Discovered new exit (range 9) 14245 | -7/Lower Caves | Learned 4 Factory zone layouts 14444 | -7/Lower Caves | Identified exit to Lower Caves 14446 | -7/Lower Caves | Entered another Lower Caves area 14505 | -7/Lower Caves | Discovered new exit (range 5) 14513 | -7/Lower Caves | Identified exit to Factory 15397 | -7/Lower Caves | Discovered new exit (range 9) 15411 | -7/Lower Caves | Identified exit to Zion 17141 | -7/Lower Caves | Attracted the attention of an 0b10 outpost 17199 | -7/Lower Caves | Learned Factory garrison access intel 17428 | -7/Lower Caves | Build established: Hauler-Mutant 17604 | -7/Lower Caves | Entered Zion 17604 | -7/Zion | Accompanied by 5 allies 17734 | -7/Zion | Discovered new exit (range 10) 17752 | -7/Zion | Identified exit to Proximity Caves 28669 | -7/Zion | RIF detected upon attempting to enter Zion 28669 | -7/Zion | Attacked by Zionites 29357 | -7/Zion | Allies destroyed Imprinter 29376 | -7/Zion | Extracted access codes from Imprinter's data core 30672 | -7/Zion | Opened final containment barrier to the Deep Caves 30694 | -7/Zion | Discovered new exit (range 3) 30694 | -7/Zion | Saw the warning signs outside the Deep Caves entrance 30696 | -7/Zion | Identified exit to Deep Caves 30697 | -7/Zion | Entered Deep Caves 30699 | -7/Deep Caves | Met 5H-AD0 30891 | -7/Deep Caves | Z-Facility disabled 31241 | -7/Deep Caves | Found Surveybot 24 Chip 31244 | -7/Deep Caves | Found Surveybot 24 Scanner 31476 | -7/Deep Caves | Discovered new exit (range 6) 31482 | -7/Deep Caves | Identified exit to Proximity Caves 31488 | -7/Deep Caves | Entered Proximity Caves 31488 | -6/Proximity Caves | Accompanied by 1 ally 31493 | -6/Proximity Caves | Thanked by 5H-AD0 31730 | -6/Proximity Caves | Learned Factory trap positions 32246 | -6/Proximity Caves | Discovered exit to Factory (range 16) 32252 | -6/Proximity Caves | Attracted the attention of an 0b10 checkpoint 32331 | -6/Proximity Caves | Entered Factory 32331 | -6/Factory | Evolved 2 slots: Utility x2 32332 | -6/Factory | Identified exit to Lower Caves 32333 | -6/Factory | Loaded intel: 76 trap records 32334 | -6/Factory | Loaded intel: 20 terminal locations 32335 | -6/Factory | Loaded intel: 4 garrison access locations 33552 | -6/Factory | Entered Lower Caves 34244 | -6/Lower Caves | Encountered a Warlord checkpoint 34311 | -6/Lower Caves | Discovered new exit (range 13) 34338 | -6/Lower Caves | Identified exit to Lower Caves 34360 | -6/Lower Caves | Found Alien Artifact 34360 | -6/Lower Caves | Identified Core Expander 34360 | -6/Lower Caves | Installed Core Expander, added new Propulsion slot 34502 | -6/Lower Caves | Learned location of Extension (-5) 34534 | -6/Lower Caves | A Derelict revealed a hidden shortcut to meet someone special 34536 | -6/Lower Caves | Identified exit to Data Miner 34676 | -6/Lower Caves | Found Prototype Device 34676 | -6/Lower Caves | Identified Heart of Steel 35262 | -6/Lower Caves | Entered Data Miner 35262 | -6/Data Miner | Accompanied by 1 ally 35262 | -6/Data Miner | Discovered new exit (range 6) 35269 | -6/Data Miner | Identified exit to Proximity Caves 35288 | -6/Data Miner | Met Data Miner 35311 | -6/Data Miner | Learned location of Section 7 (-2) 35311 | -6/Data Miner | Acquired the access code to Warlord's prototype stash 35333 | -6/Data Miner | Received God Mode back door access code from Data Miner 35457 | -6/Data Miner | Entered Proximity Caves 35457 | -5/Proximity Caves | Accompanied by 1 ally 35635 | -5/Proximity Caves | Escorted by Enhanced Grunt 36123 | -5/Proximity Caves | Discovered new exit (range 3) 36128 | -5/Proximity Caves | Identified exit to Factory 36148 | -5/Proximity Caves | Entered Factory 36148 | -5/Factory | Accompanied by 2 allies 36148 | -5/Factory | Evolved 2 slots: Utility x2 36432 | -5/Factory | Fabricated Exp. Sensor Array (x1) 36448 | -5/Factory | First assault squad dispatched 36466 | -5/Factory | Incoming assault squad redirected 36508 | -5/Factory | Fabricated Exp. Sensor Array (x1) 36545 | -5/Factory | Local fabrication network quarantined 36774 | -5/Factory | Incoming assault squad redirected 37244 | -5/Factory | Identified exit to Upper Caves 37244 | -5/Factory | Identified exit to Extension 37413 | -5/Factory | Destroyed 10 combat bots 37586 | -5/Factory | Lost 3 parts (1n2u) 37827 | -5/Factory | Discovered new exit (range 7) 37837 | -5/Factory | Identified exit to Factory 37958 | -5/Factory | Entered Extension 38036 | -5/Extension | Rescued a captive Derelict 38036 | -5/Extension | Rescued a captive Derelict 38063 | -5/Extension | Incoming investigation squad redirected 38246 | -5/Extension | Build established: Hacker-Mutant 38256 | -5/Extension | Rescued a captive Derelict 38545 | -5/Extension | Heart of Steel transformed into Warbot 38606 | -5/Extension | Spotted B-75 Beast 38620 | -5/Extension | Allies destroyed B-75 Beast 38656 | -5/Extension | Spotted B-75 Beast 38664 | -5/Extension | Destroyed B-75 Beast 38695 | -5/Extension | Discovered exit to Factory (range 3) 38773 | -5/Extension | Rescued a captive Derelict 38797 | -5/Extension | Rescued a captive Derelict 38797 | -5/Extension | Central database locked down 39057 | -5/Extension | Rescued a captive Derelict 39058 | -5/Extension | Rescued a captive Derelict 39146 | -5/Extension | Rescued A7 39201 | -5/Extension | Rescued a captive Derelict 39240 | -5/Extension | Discovered exit to Factory (range 10) 39241 | -5/Extension | Discovered new exit (range 6) 39390 | -5/Extension | Identified exit to Cetus 39412 | -5/Extension | Entered Cetus 39412 | -5/Cetus | Accompanied by 11 allies 39417 | -5/Cetus | Acquired a Cetus Manufacturing Module code from A7 39434 | -5/Cetus | Spotted Cetus Guard 39434 | -5/Cetus | Spotted Cetus Guard 39436 | -5/Cetus | Spotted Cetus Guard 39437 | -5/Cetus | Spotted Cetus Guard 39439 | -5/Cetus | Allies destroyed Cetus Guard 39440 | -5/Cetus | Destroyed Cetus Guard 39445 | -5/Cetus | Allies destroyed Cetus Guard 39452 | -5/Cetus | Allies destroyed Cetus Guard 39607 | -5/Cetus | Started Cetus Manufacturing Module 39617 | -5/Cetus | Escorted A7 to Cetus Mainframe 39632 | -5/Cetus | Manufactured an Enhanced Grunt 39634 | -5/Cetus | Discovered new exit (range 15) 39657 | -5/Cetus | Manufactured an Enhanced Grunt 39660 | -5/Cetus | Spotted Cetus Guard 39660 | -5/Cetus | Spotted Cetus Guard 39664 | -5/Cetus | Allies destroyed Cetus Guard 39664 | -5/Cetus | Spotted Cetus Guard 39666 | -5/Cetus | Spotted Cetus Guard 39667 | -5/Cetus | Destroyed Cetus Guard 39668 | -5/Cetus | Destroyed Cetus Guard 39671 | -5/Cetus | Destroyed Cetus Guard 39678 | -5/Cetus | Discovered exit to Factory (range 15) 39682 | -5/Cetus | Manufactured an Enhanced Grunt 39686 | -5/Cetus | Met Revision 17 39707 | -5/Cetus | Manufactured an Enhanced Grunt 39732 | -5/Cetus | Manufactured an Enhanced Grunt 39778 | -5/Cetus | Destroyed A7 39780 | -5/Cetus | Extracted ID and sensor layout for unrecognized location from A7's data core 39786 | -5/Cetus | Found Med. Regenerative Plating 39805 | -5/Cetus | Identified exit to Archives 39814 | -5/Cetus | Entered Archives 39814 | -5/Archives | Accompanied by 6 allies 39878 | -5/Archives | Discovered new exit (range 14) 40137 | -5/Archives | Build established: Scavenger-Mutant 40666 | -5/Archives | Discovered exit to Factory (range 16) 40715 | -5/Archives | Identified exit to Hub_04(d) 40803 | -5/Archives | Entered Hub_04(d) 40803 | -5/Hub_04(d) | Accompanied by 5 allies 40995 | -5/Hub_04(d) | Discovered exit to Factory (range 16) 41050 | -5/Hub_04(d) | Discovered exit to Factory (range 15) 41268 | -5/Hub_04(d) | Build established: Hacker-Mutant 41281 | -5/Hub_04(d) | Discovered exit to Factory (range 7) 41732 | -5/Hub_04(d) | Network Hub disabled 41732 | -5/Hub_04(d) | Network Hub disabled 41747 | -5/Hub_04(d) | Spotted Lightning 41755 | -5/Hub_04(d) | Spotted Lightning 41755 | -5/Hub_04(d) | Network Hub disabled 41758 | -5/Hub_04(d) | Spotted Lightning 41760 | -5/Hub_04(d) | Spotted Lightning 41767 | -5/Hub_04(d) | Found Exp. Signal Interpreter 41825 | -5/Hub_04(d) | Spotted Lightning 41825 | -5/Hub_04(d) | Spotted Lightning 41826 | -5/Hub_04(d) | Spotted Lightning 41849 | -5/Hub_04(d) | Destroyed Lightning 41870 | -5/Hub_04(d) | Destroyed Lightning 41894 | -5/Hub_04(d) | Found EMDS 41903 | -5/Hub_04(d) | Destroyed Lightning 41911 | -5/Hub_04(d) | Found EMDS 42012 | -5/Hub_04(d) | Destroyed Lightning 42015 | -5/Hub_04(d) | Destroyed Lightning 42038 | -5/Hub_04(d) | Destroyed Lightning 42066 | -5/Hub_04(d) | Found EMDS 42073 | -5/Hub_04(d) | Spotted Lightning 42077 | -5/Hub_04(d) | Spotted Lightning 42091 | -5/Hub_04(d) | Destroyed Lightning 42103 | -5/Hub_04(d) | Destroyed Lightning 42131 | -5/Hub_04(d) | Destroyed Lightning 42138 | -5/Hub_04(d) | Found Exp. Targeting Computer 42164 | -5/Hub_04(d) | Network Hub disabled 42209 | -5/Hub_04(d) | Spotted Lightning 42214 | -5/Hub_04(d) | Spotted Lightning 42216 | -5/Hub_04(d) | Spotted Lightning 42223 | -5/Hub_04(d) | System corruption reached 10% 42230 | -5/Hub_04(d) | Destroyed Lightning 42276 | -5/Hub_04(d) | Destroyed Lightning 42279 | -5/Hub_04(d) | Destroyed Lightning 42283 | -5/Hub_04(d) | Found EMDS 42303 | -5/Hub_04(d) | First assault squad dispatched 42345 | -5/Hub_04(d) | Entered Factory 42345 | -4/Factory | Evolved 2 slots: Utility x2 42523 | -4/Factory | Build established: Scavenger-Mutant 42570 | -4/Factory | Garrison activated, responded to threat 42845 | -4/Factory | First assault squad dispatched 42887 | -4/Factory | Sucked down chute 42887 | -4/Factory | Entered Waste 42902 | -4/Waste | EMP discharged 42916 | -4/Waste | Spotted C-40 Crusher 42922 | -4/Waste | Spotted C-40 Crusher 42922 | -4/Waste | Destroyed C-40 Crusher 42931 | -4/Waste | Spotted C-40 Crusher 42963 | -4/Waste | Spotted C-40 Crusher 43002 | -4/Waste | EMP discharged 43014 | -4/Waste | Destroyed C-40 Crusher 43021 | -4/Waste | Spotted C-40 Crusher 43053 | -4/Waste | Spotted C-40 Crusher 43067 | -4/Waste | Destroyed C-40 Crusher 43095 | -4/Waste | Destroyed C-40 Crusher 43102 | -4/Waste | EMP discharged 43132 | -4/Waste | Destroyed C-40 Crusher 43137 | -4/Waste | Found Damper Plating 43148 | -4/Waste | Destroyed C-40 Crusher 43202 | -4/Waste | EMP discharged 43290 | -4/Waste | Discovered new exit (range 10) 43302 | -4/Waste | EMP discharged 43331 | -4/Waste | Identified exit to Factory 43334 | -4/Waste | Entered Factory 43334 | -4/Factory | Spotted B-86 Titan 43483 | -4/Factory | Fabricated Mni. Smartbomb Launcher? 43614 | -4/Factory | Fabricated Combat Drone Bay (x1) 43752 | -4/Factory | Discovered new exit (range 6) 43789 | -4/Factory | Identified exit to Upper Caves 44089 | -4/Factory | Repaired Arm. Huge Wheel 44109 | -4/Factory | Incoming investigation squad redirected 44266 | -4/Factory | Entered Upper Caves 44835 | -4/Upper Caves | Learned Research garrison access intel 44844 | -4/Upper Caves | Learned Armory stockpile data 44844 | -4/Upper Caves | Learned Research garrison access intel 44947 | -4/Upper Caves | Encountered a Warlord checkpoint 45142 | -4/Upper Caves | Discovered new exit (range 8) 45151 | -4/Upper Caves | Identified exit to Upper Caves 45331 | -4/Upper Caves | Learned 4 Research zone layouts 45877 | -4/Upper Caves | Central database locked down 46632 | -4/Upper Caves | Entered another Upper Caves area 46710 | -4/Upper Caves | Discovered new exit (range 6) 46721 | -4/Upper Caves | Identified exit to Research 47206 | -4/Upper Caves | Build established: Hauler-Mutant 47413 | -4/Upper Caves | Discovered new exit (range 8) 47421 | -4/Upper Caves | Identified exit to Warlord 47863 | -4/Upper Caves | Entered Warlord 48071 | -4/Warlord | Discovered new exit (range 15) 48170 | -4/Warlord | Build established: Scavenger-Mutant 48189 | -4/Warlord | Opened side exit 48211 | -4/Warlord | RIF detected upon attempting to enter Warlord's base 48211 | -4/Warlord | Attacked by Warlord forces 48289 | -4/Warlord | Spotted DF-RQN(B) 48311 | -4/Warlord | Destroyed DF-RQN(B) 48329 | -4/Warlord | Destroyed N4-9NT(B) 48437 | -4/Warlord | Warlord's base attacked by MAIN.C 48467 | -4/Warlord | Found Prototype Ballistic Cannon 48467 | -4/Warlord | Identified Hvy. Autocannon 48620 | -4/Warlord | Destroyed 9 combat bots 48787 | -4/Warlord | Warlord forces counterattacked 49066 | -4/Warlord | Destroyed 7 combat bots 49170 | -4/Warlord | Spotted Executioner 49174 | -4/Warlord | Destroyed Executioner 49248 | -4/Warlord | Spotted Striker 49250 | -4/Warlord | Spotted Striker 49255 | -4/Warlord | Destroyed Striker 49264 | -4/Warlord | Destroyed Striker 49323 | -4/Warlord | Destroyed 16 combat bots 49326 | -4/Warlord | Lost 4 parts (1n3u) 49341 | -4/Warlord | Found Prototype Device 49341 | -4/Warlord | Identified Adv. Kinecellerator 49379 | -4/Warlord | Spotted Striker 49399 | -4/Warlord | Destroyed Striker 49406 | -4/Warlord | Spotted Executioner 49406 | -4/Warlord | Spotted Executioner 49414 | -4/Warlord | Destroyed Executioner 49421 | -4/Warlord | Destroyed Executioner 49434 | -4/Warlord | Spotted Striker 49436 | -4/Warlord | Found Prototype Processor 49436 | -4/Warlord | Identified Exp. Core Analyzer 49447 | -4/Warlord | Destroyed Striker 49473 | -4/Warlord | Lost 8 parts (2n6u) 49480 | -4/Warlord | Destroyed 13 combat bots 49518 | -4/Warlord | Spotted XP-220(K) 49530 | -4/Warlord | Spotted F1-AAS(K) 49552 | -4/Warlord | Spotted Striker 49552 | -4/Warlord | Spotted Executioner 49555 | -4/Warlord | Destroyed Striker 49572 | -4/Warlord | Destroyed Executioner 49593 | -4/Warlord | Allies destroyed Warlord 49596 | -4/Warlord | Destroyed Fake God Mode 49641 | -4/Warlord | Destroyed 8 combat bots 49685 | -4/Warlord | Opened Warlord's prototype stash 49692 | -4/Warlord | Found Prototype Reactor 49692 | -4/Warlord | Identified Vortex Chain Reactor 49698 | -4/Warlord | Found Exp. Phase Shifter 49707 | -4/Warlord | Found Prototype Hackware 49725 | -4/Warlord | Found Prototype Device 49725 | -4/Warlord | Identified Exp. Focal Shield 49740 | -4/Warlord | Spotted Striker 49741 | -4/Warlord | Spotted Executioner 49763 | -4/Warlord | Destroyed Striker 49769 | -4/Warlord | Destroyed Executioner 49794 | -4/Warlord | Destroyed 11 combat bots 49856 | -4/Warlord | Spotted Striker 49863 | -4/Warlord | Destroyed Striker 49994 | -4/Warlord | Destroyed 9 combat bots 49995 | -4/Warlord | Spotted B-90 Cyclops 49995 | -4/Warlord | Spotted Striker 50000 | -4/Warlord | Spotted B-86 Titan 50018 | -4/Warlord | Destroyed Striker 50025 | -4/Warlord | Spotted B-90 Cyclops 50068 | -4/Warlord | Lost 5 parts (4u1w) 50079 | -4/Warlord | Spotted B-86 Titan 50099 | -4/Warlord | Destroyed B-90 Cyclops 50107 | -4/Warlord | Found Quantum Capacitor 50116 | -4/Warlord | Core integrity fell below 50% 50138 | -4/Warlord | Destroyed B-86 Titan 50146 | -4/Warlord | Lost 9 parts (1n7u1w) 50162 | -4/Warlord | Destroyed B-90 Cyclops 50196 | -4/Warlord | Lost 4 parts (1p3u) 50208 | -4/Warlord | Destroyed B-86 Titan 50286 | -4/Warlord | Spotted Executioner 50290 | -4/Warlord | Destroyed Executioner 50330 | -4/Warlord | Found Exp. Core Analyzer 50410 | -4/Warlord | Spotted Striker 50429 | -4/Warlord | Destroyed Striker 50455 | -4/Warlord | Spotted Executioner 50456 | -4/Warlord | Spotted Striker 50467 | -4/Warlord | Destroyed 18 combat bots 50479 | -4/Warlord | Destroyed Striker 50482 | -4/Warlord | Core integrity fell below 20% 50487 | -4/Warlord | Destroyed Executioner 50518 | -4/Warlord | Lost 4 parts (1n2u1w) 50530 | -4/Warlord | Destroyed 11 combat bots 50536 | -4/Warlord | Spotted Striker 50557 | -4/Warlord | Destroyed by G-67 Veteran with Electrolaser Last Messages --------------- 50548_ S-27 Virus suffers critical hit. 50548_ S-27 Virus destroyed. 50548_ Slug penetrates Earth. 50549_ Identified Helical Railgun. 50551_ Slammed into H-88 Terminator. 50551_ Destabilizing: Core damaged (-46). 50551_ Adv. Heat Sink destroyed. 50551_ Penetrated by Slug. 50551_ Com. Wheel destroyed. 50551_ Penetrated by Slug. 50551_ Flexi-carbon Leg destroyed. 50552_ Slammed into H-88 Terminator. 50553_ Imp. Treads destroyed. 50553_ Penetrated by Slug. 50553_ Adv. Cooling System destroyed. 50554_ Slug penetrates Earth. 50554_ Slug penetrates G-73 Enforcer. 50556_ Adv. Cooling System destroyed. 50556_ System corrupted by crushing effect (+2). 50557_ The unstable cave ceiling collapses. Map ----- +----------------------------------------------------+ | ??????#" ##???????? #??? | | ??????### #??????? #???? | | ????????### ##?????? #???? | | ??????????## #?????? #????? | | ???????????## #???### #?????? | | ????????????#* ##### ###???? | | ????????????# = ###?? | | ????????????#" ### "## %""# | | ????????????### ###??? ??? | | ??????????????### ##???? ??? | | ????????????????# #???? #?? | | ????????????????#" ##??? #?? | | ????????????????### #??? ##? | | ??????????????????## ##?? #? | | ???????????????????## ### #?? | | ????????????????????## ! # #??? | | ??????????????### ??## = #???? | | ?????????????## ### ##??? | | ???????????? + ## #??? | | ?????????? + #### #??? | | ??????????? ## ! ##??# #??? | | ???????????" ## ###?# ##?? | | ???????????"" ## ## ## #?? | | ???????????## ## # # # #?? | | ???????????# ## # #?? | | ??????????## # @ #?? | | ??????????# # ##?? | | ??????????# #gggslbs #??? | | ??????????## % ##g Kghh ##??? | | ??????????# % s ## ###?? | | ?????????### =g### # #?? | | ?????????# % *% #?## ;#??? | | ?????????# # %=[! ####; #??? | | ?????????# # *!!] #?#" #??? | | ????????## * !%= #?# ??? | | ??????### #= ### ?? | | ?????#### #% % ## ###? | | ?????### # ## #??? | | ?????# # ## ##??? | | ?????### # / ## #???? | | ?????## ## " #?## ##???? | | ?????## # "" #???#####????? | | ?????### ### ## #????????????? | | ???????##??# ## #???????????? | | ??????????#" #### #???????????? | | ???????####" #??? ???????????? | | ???????# # ##??# ??????????? | | ???????# " ##??###?????????? | | #??????# #??????????????? | | ######### #####??????????? | +----------------------------------------------------+ Best States ------------- Heat Dissipation 155 Energy Generation 57 Energy Capacity 1700 Matter Stores 550 Matter Capacity 550 Sight Range 16 Robot Scan Range 30 Terrain Scan Density 10 Armor Coverage 1800 Resistance: KI 30 Resistance: EM 90 Weapon Shielding 66 Phase Shifting 20 Evasion (%) 60 Targeting Accuracy 20 Core Analysis 15 Armor Integrity Analysis 66 Recoil Reduction 3 Particle Charging 15 Offensive Hacking 14 Defensive Hacking 24 Item Schematics ----------------- Lrn. Sensor Array | -7/Factory | Hacked Arm. Huge Wheel | -7/Factory | Hacked Combat Drone Bay | -6/Data Miner | Free Lgt. Regenerative Plating | -6/Data Miner | Free Exp. Flexi-carbon Leg | -6/Data Miner | Free Exp. Sensor Array | -6/Data Miner | Free Exp. Targeting Computer | -6/Data Miner | Free Exp. ECM Suite | -6/Data Miner | Free Mni. Smartbomb Launcher | -6/Data Miner | Free Plasma Sword | -6/Data Miner | Free Exp. Signal Interpreter | -5/Extension | Hacked Exp. Terrain Scanner | -5/Extension | Hacked Quantum Capacitor | -4/Upper Caves | Hacked Robot Schematics ------------------ S-27 Virus | -6/Data Miner | Free G-50 Soldier | -6/Data Miner | Free G-67 Veteran | -6/Data Miner | Free L-41 Fighter | -6/Data Miner | Free I-36 Angel | -6/Data Miner | Free Fabricated ------------ Lrn. Sensor Array | x1 | -7/Factory Exp. Sensor Array | x1 | -5/Factory Exp. Sensor Array | x1 | -5/Factory Mni. Smartbomb Launcher | x1 | -4/Factory Combat Drone Bay | x1 | -4/Factory Alien Tech Used ----------------- Core Expander Achievements -------------- None Challenges ------------ None Game ------ Seed LegHelicalInterpreter Manual? 0 Play Time 09:57:43 Cumulative 1078.9 hours Start 2020.08.20 @ 17:40:28 End 2020.09.02 @ 22:52:42 Sessions 9 Manual Loads 0 Difficulty Rogue Special Mode None Game No. 380 Rogue 380 Adventurer 0 Explorer 0 Win Type - Total 249 Types 214/5/11/3/3/2/11 Lore% 98 Gallery% 100 Achievement% 94 Wizard Run 0 Options --------- ASCII 0 Keyboard 0 Movement Numpad Keybinds 0 Fullscreen 0 Font 16/SmallcapsGlow Map View 76x50 Tactical HUD 1 Map Filters NONE Filters NONE Steam 1 RUN: 5ae52175-6f88-41dd-94ab-68fa3e2cb912